Cogmind - Beta 17 @@@ ROGUE MODE // 2026.07.10 @ 15:03:14 // Winter2019/RPGLIKE Player: Gallgagger Result: Destroyed by thrown Wall Performance ------------- Evolutions (5) 2500 Regions Visited (27) 5400 Robots Destroyed (1169) 5845 Value Destroyed (52036) 52036 Prototype IDs (255) 5100 Alien Tech Used (0) 0 Bonus (33675) 33675 TOTAL SCORE: 104556 Bonus ------- Triggered High Security 2500 High Alert Combat Kills 25442 Follower Combat Kills 195 Hunted by Unchained 1000 Destroyed Unchained 1000 Entered Garrisons 600 Aligned with FarCom 300 Met Data Miner 300 Used Data Conduit 3000 Destroyed Z-Imprinter 1000 Acquired ECA 300 Pursued by Intercept 1000 Friendly Fire -2962 Cogmind --------- Core Integrity 0/1300 Matter 300/300 Energy 134/135 System Corruption 6% Temperature Cool (0) Movement Hovering (100) Ox1 Location -5/Factory Parts ------- > --- POWER (2) -------- Zionite Light DM Reactor Compact Particle Reactor > --- PROPULSION (5) --- Zionite Glidesys II Zionite Glidesys II > --- UTILITY (8) ------ Experimental Heat Sink Zionite Metafield Generator Advanced Signal Interpreter 0b10 Alert Chip Experimental Target Analyzer Experimental Target Analyzer Advanced Weapon Cycler Graphene Brace > --- WEAPON (4) ------- Experimental Thermic Cannon 8R-AWN's Boregun > --- INVENTORY (5) ---- Protomatter-67 YI-UF0's Bottomless Matter Pit (1500) Zionite Weapon Casing CPS Tube (2) Peak State ------------ > --- POWER ------------ Zionite Light DM Reactor Compact Particle Reactor > --- PROPULSION ------- Zionite Glidesys I Zionite Glidesys I Zionite Glidesys I Zionite Glidesys II Zionite Glidesys II > --- UTILITY ---------- Zionite Metafield Generator Advanced Signal Interpreter Surveybot 24 Scanner 0b10 Alert Chip Experimental Target Analyzer Experimental Target Analyzer Advanced Weapon Cycler Graphene Brace > --- WEAPON ----------- Experimental Thermic Cannon 8R-AWN's Boregun Molecular Deconstructor > --- INVENTORY -------- Experimental Heat Sink YI-UF0's Bottomless Matter Pit Zionite Weapon Casing Zionite Phaser-S CPS Tube [Rating: 152] Favorites ----------- Power Micro Nuclear Core Engine Ion Engine Power Core Micro Nuclear Core Reactor Compact Particle Reactor Propulsion Experimental Cesium-ion Thruster Leg Aluminum Leg Wheel Compact Wheel Hover Unit Zionite Glidesys I Flight Unit Experimental Cesium-ion Thruster Utility Core Analyzer Device Advanced Weapon Cycler Storage Improved Energy Well Processor Core Analyzer Hackware Hacking Suite Protection Hardened Light Armor Plating Weapon 8R-AWN's Boregun Energy Gun PD Laser Energy Cannon Experimental Thermic Cannon Ballistic Gun 8R-AWN's Boregun Ballistic Cannon Antimatter Cannon Launcher Heavy Rocket Launcher Special Weapon CPS Tube Impact Weapon Powered Hammer Slashing Weapon Segregator Piercing Weapon CR-A16's Pointy Stick Build | -11 -10 -10 -9 -9 -9 -8 -8 -8 -8 -8 -8 -8 -8 -7 -7 -7 -7 -7 -7 -6 -6 -6 -6 -6 -6 -5 -5 ------- Run | Yrd Mat Min Mat Min Exi Min Mat Gar Mat Gar Mat Gar Mat Fac Was Fac Low Low Dat Pro Fac Low Low Zio Dee Pro Fac Slots Evolved 15 | 4 2 1 5 . . . . 1 . . . . . . . 1 . . . . 1 . . . . . . Power 1 | . . . . . . . . . . . . . . . . . . . . . 1 . . . . . . Propulsion 4 | 1 . . 2 . . . . . . . . . . . . 1 . . . . . . . . . . . Utility 7 | 1 1 1 3 . . . . 1 . . . . . . . . . . . . . . . . . . . Weapon 3 | 2 1 . . . . . . . . . . . . . . . . . . . . . . . . . . Parts Attached 130 | 4 10 4 6 1 14 . 4 . 2 . 5 . 2 14 . 13 2 . . . 11 1 1 13 21 2 . Power 14 | 1 . . . . 1 . . . . . . . . 1 . 1 . . . . 2 . . 4 4 . . Engine 6 | 1 . . . . . . . . . . . . . . . . . . . . 1 . . 3 1 . . Core 4 | . . . . . 1 . . . . . . . . 1 . 1 . . . . . . . 1 . . . Reactor 4 | . . . . . . . . . . . . . . . . . . . . . 1 . . . 3 . . Propulsion 31 | 2 4 . 2 . 4 . 2 . . . 3 . . 6 . 1 . . . . 2 . . . 5 . . Treads . | . . . . . . . . . . . . . . . . . . . . . . . . . . . . Leg 2 | . . . . . 2 . . . . . . . . . . . . . . . . . . . . . . Wheel 2 | 2 . . . . . . . . . . . . . . . . . . . . . . . . . . . Hover 6 | . 1 . . . . . . . . . . . . . . . . . . . . . . . 5 . . Flight 21 | . 3 . 2 . 2 . 2 . . . 3 . . 6 . 1 . . . . 2 . . . . . . Utility 54 | . 2 4 3 1 7 . 2 . 2 . . . 2 3 . 9 2 . . . 7 . . 1 8 1 . Device 25 | . . 1 . . 5 . . . 1 . . . 2 1 . 6 2 . . . 3 . . 1 2 1 . Storage 3 | . . 1 . . . . . . . . . . . . . 1 . . . . . . . . 1 . . Processor 16 | . 2 2 . 1 1 . 2 . 1 . . . . 1 . 2 . . . . 4 . . . . . . Hackware 1 | . . . . . . . . . . . . . . 1 . . . . . . . . . . . . . Protection 9 | . . . 3 . 1 . . . . . . . . . . . . . . . . . . . 5 . . Artifact . | . . . . . . . . . . . . . . . . . . . . . . . . . . . . Weapon 31 | 1 4 . 1 . 2 . . . . . 2 . . 4 . 2 . . . . . 1 1 8 4 1 . Energy Gun 5 | . . . . . . . . . . . . . . 1 . . . . . . . . . . 4 . . Energy Cannon 1 | . . . . . . . . . . . . . . 1 . . . . . . . . . . . . . Ballistic Gun 11 | 1 4 . 1 . 2 . . . . . 2 . . . . 1 . . . . . . . . . . . Ballistic Cannon 1 | . . . . . . . . . . . . . . 1 . . . . . . . . . . . . . Launcher 2 | . . . . . . . . . . . . . . . . 1 . . . . . . . 1 . . . Special Weapon 6 | . . . . . . . . . . . . . . . . . . . . . . . 1 4 . 1 . Impact Weapon 2 | . . . . . . . . . . . . . . . . . . . . . . 1 . 1 . . . Slashing Weapon 2 | . . . . . . . . . . . . . . 1 . . . . . . . . . 1 . . . Piercing Weapon 1 | . . . . . . . . . . . . . . . . . . . . . . . . 1 . . . Special Melee Weapon . | . . . . . . . . . . . . . . . . . . . . . . . . . . . . Unidentified Prototypes 33 | . . 1 1 . 6 . 1 . . . 1 . . 5 . 5 . . . . . . . 1 11 1 . Corrupted Parts 2 | . . . . . 2 . . . . . . . . . . . . . . . . . . . . . . System Corruption 2 | . . . . . 2 . . . . . . . . . . . . . . . . . . . . . . Parts Lost 21 | . . . . . 3 . . . . . . . . 1 . . . . . . 1 1 . 3 6 1 5 Power 8 | . . . . . . . . . . . . . . . . . . . . . . . . 3 5 . . Propulsion 4 | . . . . . 1 . . . . . . . . . . . . . . . . . . . . . 3 Utility 7 | . . . . . 2 . . . . . . . . 1 . . . . . . . 1 . . 1 1 1 Weapon 2 | . . . . . . . . . . . . . . . . . . . . . 1 . . . . . 1 Highest Loss Streak 3 | . . . . . 1 . . . . . . . . 1 . . . . . . 1 1 . 3 3 1 3 To Critical Strikes . | . . . . . . . . . . . . . . . . . . . . . . . . . . . . Average Backups 3 | . . . 1 1 1 3 3 3 3 3 3 3 3 4 5 4 5 5 5 5 4 4 4 4 3 4 4 Power . | . . . . . . . . . . . . . . . . . . . . . . . . . . . . Propulsion . | . . . . . . . . . . . . . . . 1 . . . . . . . . . . . . Utility 2 | . . . 1 1 1 3 3 3 3 3 3 3 3 3 3 3 4 4 4 4 3 3 3 2 3 4 2 Weapon . | . . . . . . . . . . . . . . . 1 1 1 1 1 1 1 1 1 1 . . . Tool/Special . | . . . . . . . . . . . . . . . . . . . . . . . . . . . . Unused Backups 3 | . . . . . . . . . . . . . . . . . . . . . . . . 1 2 . . Power . | . . . . . . . . . . . . . . . . . . . . . . . . . . . . Propulsion . | . . . . . . . . . . . . . . . . . . . . . . . . . . . . Utility 3 | . . . . . . . . . . . . . . . . . . . . . . . . 1 2 . . Weapon . | . . . . . . . . . . . . . . . . . . . . . . . . . . . . Tool/Special . | . . . . . . . . . . . . . . . . . . . . . . . . . . . . Average Slot Usage (%) 92 | . 79 97 93 97 92 100 99 95 98 100 100 100 99 97 88 87 88 88 88 88 88 88 95 95 91 94 92 Engine 1 | . 11 9 7 6 4 . . . . . . . . . . . . . . . 1 5 5 3 . . . Core 2 | . . . . . 1 6 6 5 5 5 5 5 5 5 5 5 5 5 5 5 . . . . . . . Reactor 1 | . . . . . . . . . . . . . . . . . . . . . 4 5 5 4 6 10 10 Hover 2 | . . . . . . . . . . . . . . . . . . . . . . . . . 13 26 25 Flight 21 | . 12 19 20 25 22 25 25 23 23 23 23 23 23 23 23 25 27 27 27 27 26 26 26 26 12 . . Device 15 | . . 7 6 . 2 18 14 17 17 23 23 23 22 18 17 12 16 16 16 16 21 20 21 21 14 13 20 Processor 23 | . 9 21 22 22 24 18 24 23 27 23 23 23 23 27 29 31 27 27 27 27 22 21 21 21 21 21 21 Protection 1 | . . . 5 18 11 6 3 . . . . . . . . . . . . . . . . . 3 3 . Energy Gun 1 | . . . . . . . . . . . . . . . 5 5 5 5 5 5 2 . . . 4 4 1 Energy Cannon 1 | . . . . . . . . . . . . . . . . . . . 3 . 2 5 5 4 5 5 5 Ballistic Gun 15 | . 35 38 29 25 24 25 25 23 23 23 23 23 23 19 5 5 5 5 1 4 4 5 5 4 5 5 5 Peak Build Rating 152 | 4 15 24 28 27 71 71 78 78 81 81 86 85 85 111 111 122 122 119 119 119 139 131 134 139 146 152 152 Average Rating 92 | 2 10 20 26 26 33 71 73 78 80 81 83 85 83 90 110 115 119 119 117 118 130 126 131 132 134 141 141 On Entrance 87 | . 4 15 24 26 27 71 71 78 78 81 81 85 85 83 111 111 122 119 119 117 119 130 131 134 136 141 152 Avg Prop Armor Cover (%) 2 | . 3 . . . 5 . . . . . . . . . . 1 . . . . 2 . . 2 3 . 9 Naked Turns . | . . . . . . . . . . . . . . . . . . . . . . . . . . . . Heaviest Build 59 | 7 17 18 30 30 36 36 36 33 34 34 34 34 35 40 33 39 39 39 46 39 45 44 40 54 59 59 57 Greatest Support 106 | 31 31 18 31 31 43 43 45 33 50 50 39 39 39 52 52 52 45 45 57 57 61 49 49 61 106 94 94 Greatest Overweight (x) 2 | 2 1 . . . 1 . . . . . . . . . . . . . 1 . 1 . . 1 . . 1 Average Overweight (x) . | . . . . . . . . . . . . . . . . . . . . . . . . . . . . Largest Inventory Capacity 5 | . 1 1 1 1 3 3 4 4 4 4 4 4 5 5 5 5 5 5 5 5 5 5 5 5 5 5 5 Average Capacity 4 | . . 1 1 1 1 3 3 4 4 4 4 4 4 5 5 5 5 5 5 5 5 5 5 5 5 5 5 Most Carried 5 | . . 1 1 1 3 3 4 4 4 4 4 4 5 5 5 5 5 5 5 5 5 5 4 5 5 5 5 Average Carried 3 | . . . 1 1 1 3 3 4 4 4 4 4 4 4 5 4 5 5 5 5 4 4 4 4 3 4 4 Final Capacity 5 | . 1 1 1 1 3 3 4 4 4 4 4 4 5 5 5 5 5 5 5 5 5 5 5 5 5 5 5 Final Carried 5 | . . 1 1 1 3 3 4 4 4 4 4 4 5 5 5 5 5 5 5 5 5 4 4 5 5 5 4 Class Distribution -------------------- 45% | Scavenger-Scout 40% | Scavenger-Sprinter 9% | Gunner 3% | Scavenger-Gunner Dominant Class ---------------- Gunner | -10/Materials Gunner | -10/Mines Scavenger-Gunner | -9/Materials Scavenger-Sprinter | -9/Mines Scavenger-Sprinter | -9/Exiles Scavenger-Sprinter | -8/Mines Scavenger-Sprinter | -8/Materials Scavenger-Sprinter | -8/Garrison Scavenger-Sprinter | -8/Materials Scavenger-Sprinter | -8/Garrison Scavenger-Sprinter | -8/Materials Scavenger-Sprinter | -8/Garrison Scavenger-Sprinter | -8/Materials Scavenger-Sprinter | -7/Factory Scavenger-Sprinter | -7/Waste Scavenger-Scout | -7/Factory Scavenger-Scout | -7/Lower Caves Scavenger-Scout | -7/Lower Caves Scavenger-Scout | -7/Data Miner Scavenger-Scout | -6/Proximity Caves Scavenger-Scout | -6/Factory Scavenger-Scout | -6/Lower Caves Scavenger-Scout | -6/Lower Caves Scavenger-Scout | -6/Zion Scavenger-Scout | -6/Deep Caves Scavenger-Scout | -5/Proximity Caves Scavenger-Scout | -5/Factory Resources | -11 -10 -10 -9 -9 -9 -8 -8 -8 -8 -8 -8 -8 -8 -7 -7 -7 -7 -7 -7 -6 -6 -6 -6 -6 -6 -5 -5 ----------- Run | Yrd Mat Min Mat Min Exi Min Mat Gar Mat Gar Mat Gar Mat Fac Was Fac Low Low Dat Pro Fac Low Low Zio Dee Pro Fac Matter Collected 25949 | . 1119 1764 1548 264 2934 357 1382 526 1164 800 1144 1113 1270 1990 509 2477 176 144 52 182 2518 207 458 412 597 303 539 Remotely . | . . . . . . . . . . . . . . . . . . . . . . . . . . . . Salvage Created 51479 | 103 674 432 2996 257 2319 343 1991 530 2067 852 2789 1522 3904 2995 2485 7856 406 509 554 1121 8830 649 1189 617 920 1019 1550 Parts 2886 | 4 68 24 166 29 178 37 184 49 151 101 176 136 237 166 74 396 38 62 6 48 344 20 37 36 29 30 60 Haulers Intercepted 10 | . . . . . . . 1 . . . 1 . 1 1 . 1 . . . 1 3 . . . . . 1 Recyclers Shooed 7 | . . . 1 . . . 1 . . . 1 . . . . . . . . . 4 . . . . . . Parts Field Recycled . | . . . . . . . . . . . . . . . . . . . . . . . . . . . . Retrieved Matter . | . . . . . . . . . . . . . . . . . . . . . . . . . . . . Parts Self-Destructed 191 | . . . . . . . . . . . . . . . . . 27 38 . 48 . 20 25 3 . 30 . Prevented 1 | . . . . . . . . . . . . . . . . . . . . . . 1 . . . . . Parts Restored . | . . . . . . . . . . . . . . . . . . . . . . . . . . . . Kills | -11 -10 -10 -9 -9 -9 -8 -8 -8 -8 -8 -8 -8 -8 -7 -7 -7 -7 -7 -7 -6 -6 -6 -6 -6 -6 -5 -5 ------- Run | Yrd Mat Min Mat Min Exi Min Mat Gar Mat Gar Mat Gar Mat Fac Was Fac Low Low Dat Pro Fac Low Low Zio Dee Pro Fac Combat Hostiles Destroyed 1011 | . 32 8 65 14 80 17 53 22 43 35 52 42 70 38 5 143 14 19 4 18 140 14 15 2 18 18 30 Melee 1 | . . . . . . . . . . . . . . . . . . . . . 1 . . . . . . Guns 909 | . 32 8 65 14 80 17 52 22 43 35 52 42 70 34 5 142 14 19 . 18 97 9 5 1 13 9 11 Cannons 62 | . . . . . . . . . . . . . . . . . . . . . 29 4 7 1 3 8 10 AOE 10 | . . . . . . . 1 . . . . . . 4 . 1 . . . . 3 . . . . . 1 Classes Destroyed 30 | 2 3 1 6 . 4 . 2 1 1 . 1 . . . 1 . 3 . . . 1 . . 2 2 . . Worker 38 | . . 1 2 . . 1 4 . 2 . 2 . 2 9 . 4 . . . . 9 . . . . . 2 Builder 21 | . 1 . 1 . . 1 . . . . 3 . . 6 . 2 . . . . 6 . . . . . 1 Tunneler 4 | 1 . . . . . . 1 . . . . . 1 1 . . . . . . . . . . . . . Hauler 10 | . . . . . . . 1 . . . 1 . 1 1 . 1 . . . 1 3 . . . . . 1 Recycler 9 | 1 . . 2 1 . . . . . . 1 . . 3 . . . . . . 1 . . . . . . Mechanic 17 | . . . . . . . . . 1 . . . 6 . . 9 . . . . 1 . . . . . . Operator 15 | . . . 1 . . . 3 . 2 . 1 . 2 . . 3 . . . . 2 . . . . . 1 Watcher 22 | . . . 1 . . . 2 . 1 . 3 . 3 2 . 6 . . . . 3 . . . . . 1 Swarmer 150 | . 8 5 9 11 1 15 4 9 5 15 3 9 3 2 . 16 7 2 . 3 6 7 6 . . . 4 Cutter 13 | . . . . . . . . . . . 3 . . . . 5 . . . . 2 . . . . . 3 Saboteur 8 | . . . . . . . . . . . . . . . . . . . . . 8 . . . . . . Grunt 436 | . 24 2 42 3 31 . 36 7 26 9 29 18 41 17 . 51 . 10 . 12 54 7 4 . . 5 8 Brawler 41 | . . . 2 . 6 . . . . . . 1 8 2 . 14 . . . 1 5 . . . . 2 . Duelist 31 | . . . 2 . 3 . 1 . 1 . 4 . 3 1 . 4 . 1 . . 9 . . . . 2 . Protector 23 | . . . 2 . . . . . 1 . 1 . . 3 . 8 . . . . 8 . . . . . . Sentry 92 | . . . 8 . . . 9 3 7 2 9 3 13 2 . 14 . 1 . 1 14 . . . . 2 4 Demolisher 2 | . . . . . 1 . . . . . 1 . . . . . . . . . . . . . . . . Specialist 16 | . . . . . . . . 2 . 1 . . . 3 . 2 . . . . 5 . . . . 3 . Hunter 65 | . . . . . 18 2 2 1 2 . 2 1 1 4 . 10 . . . 1 13 . 2 . . 3 3 Programmer 64 | . . . . . 12 . . . . 8 . 10 . 4 . 17 2 . . . 8 . . . . 1 2 Heavy 9 | . . . . . . . 1 . 1 . . . 1 . . 2 . . . . 2 . . . . . 2 Behemoth 3 | . . . . . . . . . . . . . . . . . 1 . . . 1 . 1 . . . . Compactor 5 | . . . . . . . . . . . . . . . 5 . . . . . . . . . . . . Enhanced Grunt 4 | . . . . . . . . . . . . . . . . . . . 4 . . . . . . . . Tracker 4 | . . . . . . . . . . . . . . . . . . . . . 2 . . . . . 2 Combat Programmer 4 | . . . . . . . . . . . . . . . . . . . . . 2 . . . . . 2 Zionite 16 | . . . . . . . . . . . . . . . . . . . . . . . . 16 . . . Z-Light 11 | . . . . . . . . . . . . . . . . . . . . . . . . . 11 . . Tinkerer 1 | . . . . . . . . . . . . . . . . . . . . . . . . 1 . . . Thief 3 | . . . . . . . . . . . . . . . . . 3 . . . . . . . . . . Master Thief 7 | . . . . . . . . . . . . . . . . . . 5 . . . . 2 . . . . Assembled 10 | . . . . . 7 . . . . . . . . . . . . . . . . . . . 3 . . Golem 3 | . . . . . . . . . . . . . . . . . . . . . . . . . 3 . . Wasp 6 | . . . . . . . . . . . . . . . 6 . . . . . . . . . . . . Thug 7 | . . 1 . . . . . . . . . . . . 6 . . . . . . . . . . . . Savage 3 | . . . . . . . . . . . . . . . 2 . . . . . . . . 1 . . . Mutant 3 | . . . . . . . . . . . . . . . . . 1 . . . . . 1 1 . . . Best Kill Streak 34 | 2 6 6 16 5 20 13 13 6 16 20 12 8 22 16 2 25 6 11 2 9 34 14 5 12 4 9 8 Combat Bots Only 22 | . 6 5 11 4 20 11 11 6 14 20 11 8 20 8 2 22 6 11 2 8 21 14 5 1 4 9 7 Max Kills in Single Turn 6 | 1 1 2 2 2 2 3 3 2 2 2 3 3 4 4 2 6 2 2 1 2 2 1 1 1 2 2 2 Gunslinging 1 | . . . 1 1 1 1 1 1 1 1 1 1 1 . . . . . . . . . . . . . . Exploded 4 | . . . . . . . 1 . . . . . . 4 . 1 . . . . 2 . . . . . 1 Melee 1 | . . . . . . . . . . . . . . . . . . . . . 1 . . . . . . Uniques/NPCs Destroyed 5 | . . 1 . . 1 . . . . . . . . . . . . . 1 . 1 . . . 1 . . YI-UF0 (-10/Mines) 8R-AWN (-9/Exiles) Data Miner (-7/Data Miner) 6S-H0T (-6/Factory) Z-Imprinter (-6/Deep Caves) Combat | -11 -10 -10 -9 -9 -9 -8 -8 -8 -8 -8 -8 -8 -8 -7 -7 -7 -7 -7 -7 -6 -6 -6 -6 -6 -6 -5 -5 -------- Run | Yrd Mat Min Mat Min Exi Min Mat Gar Mat Gar Mat Gar Mat Fac Was Fac Low Low Dat Pro Fac Low Low Zio Dee Pro Fac Hostile Shots Fired 2461 | . 83 21 120 20 302 12 68 52 91 76 70 73 116 149 . 394 32 21 5 24 415 35 31 19 85 36 111 Missed 1116 | . 23 13 48 7 116 4 26 22 43 39 45 36 67 88 . 208 11 13 3 14 182 18 13 8 31 7 31 Hits 1345 | . 60 8 72 13 186 8 42 30 48 37 25 37 49 61 . 186 21 8 2 10 233 17 18 11 54 29 80 Melee 36 | . . . 4 . 8 . . . . . . . . 11 . 2 1 . . . 3 . . . . . 7 Projectile 1309 | . 60 8 68 13 178 8 42 30 48 37 25 37 49 50 . 184 20 8 2 10 230 17 18 11 54 29 73 AOE 22 | . . 6 . . . . . . . . 3 . . 7 . 1 . . . . 3 . . 2 . . . Critical Strikes 74 | . . . 3 . 23 . 2 . 2 1 1 5 1 7 . 2 1 . . 1 15 1 2 1 . 2 4 Actively Blocked 14 | . . . . . . . . . . . . . . . . . . . . . 6 1 2 1 . . 4 Part Disruptions 3 | . . . . . 1 . . . . . . . . . . 1 . . . . . . . 1 . . . Damage Taken 23881 | . 628 211 1073 124 2937 74 663 340 827 498 467 530 858 1523 . 2407 225 150 98 158 4152 296 336 430 1804 544 2528 Core 18513 | . 497 177 818 82 2060 57 514 268 650 402 371 412 685 1211 . 1921 184 123 88 128 3335 237 279 374 1297 285 2058 Absorbed by Shields 52 | . . . . . . . . 38 . . . 4 . 10 . . . . . . . . . . . . . Redirected to Core 15371 | . 388 126 660 65 1605 32 407 243 618 319 336 402 608 1086 . 1624 146 97 38 109 2807 211 205 192 1038 269 1740 Redirected to Shielding 54 | . . . . . . . . . . . . . . . . . . . . . . . . . 54 . . Core Remaining (%) 96 | 100 . 77 . . . 100 . . . . . . 100 . . . . . . 100 . . . . . 100 . Volleys Fired 2303 | 4 61 14 93 16 156 12 78 49 89 70 86 92 103 152 74 356 22 24 28 32 356 32 73 47 44 44 96 Largest 4 | 1 4 4 4 4 4 4 4 2 4 2 2 2 2 2 1 1 1 1 1 1 2 2 2 4 4 3 2 Hottest 270 | 20 92 92 92 92 92 106 106 60 106 60 60 60 60 120 30 30 30 30 120 30 150 150 150 150 270 210 150 Shots Fired 4662 | 4 193 56 372 64 541 48 250 98 184 137 171 179 205 238 73 432 37 51 36 48 560 62 129 90 111 110 183 Gun 4122 | 4 193 56 372 64 541 48 250 98 184 137 171 179 205 233 73 432 37 51 10 48 369 32 73 32 67 75 88 Cannon 525 | . . . . . . . . . . . . . . 5 . . . . 26 . 191 30 56 43 44 35 95 Launcher . | . . . . . . . . . . . . . . . . . . . . . . . . . . . . Special 15 | . . . . . . . . . . . . . . . . . . . . . . . . 15 . . . Kinetic 3871 | 4 193 56 372 64 541 48 250 98 184 137 171 179 205 229 73 355 22 24 2 32 322 32 73 32 42 43 88 Thermal 719 | . . . . . . . . . . . . . . 9 . 77 15 27 34 16 238 30 56 43 44 35 95 Explosive 15 | . . . . . . . . . . . . . . . . . . . . . . . . 15 . . . Electromagnetic . | . . . . . . . . . . . . . . . . . . . . . . . . . . . . Phasic 57 | . . . . . . . . . . . . . . . . . . . . . . . . . 25 32 . Robot Hit Streak 68 | 4 24 25 42 21 68 9 48 28 20 32 21 28 29 10 33 19 6 10 16 25 45 10 21 18 20 17 39 Robot Miss Streak 15 | . 4 3 4 2 2 1 3 2 3 1 2 2 2 4 1 4 7 15 3 2 12 2 5 2 3 2 2 Penetration Max 2 | . . . . . . 1 2 2 2 1 2 2 2 2 2 2 2 1 . 2 2 2 1 . 1 1 2 Secondary Targets 112 | . 4 1 12 3 36 5 6 1 6 5 10 5 16 2 . . . . . . . . . . . . . Max Gunslinging Chain 2 | . 1 1 1 1 2 1 1 1 1 1 1 1 1 1 . . . . . . . . . . . . . Autonomous 214 | . . . . . . . . . . . . . . 4 . 83 15 27 8 18 59 . . . . . . Shots Hit Robots 3120 | 4 128 30 248 35 430 24 185 46 136 85 131 106 166 73 47 297 27 33 22 45 398 41 76 47 76 72 112 Core Hits 1843 | 3 47 16 101 18 157 20 98 28 79 47 96 61 123 81 31 292 22 31 16 34 269 18 26 19 32 26 52 Critical Kills 572 | . . . 3 2 11 8 35 16 29 21 38 33 66 44 16 99 5 5 . 9 85 8 6 9 11 5 8 Critical Parts Destroyed 581 | . 1 1 8 1 10 2 33 12 36 19 34 34 52 29 7 105 3 2 . 9 111 10 18 6 2 16 20 Critical Strikes 1395 | . 1 1 11 3 21 10 70 31 66 40 74 71 118 74 35 215 8 9 6 18 283 26 38 23 35 40 68 Burn 186 | . . . . . . . . . . . . . . . . . . . 6 . 82 8 14 7 17 14 38 Destroy 1202 | . 1 1 11 3 21 10 70 31 66 40 74 71 118 74 35 215 8 9 . 18 201 18 24 15 16 22 30 Impale 1 | . . . . . . . . . . . . . . . . . . . . . . . . 1 . . . Intensify 6 | . . . . . . . . . . . . . . . . . . . . . . . . . 2 4 . Melee Attacks 19 | . . . . . . . . . . . . . . . . . . . . . . . 1 11 7 . . Thermal 10 | . . . . . . . . . . . . . . . . . . . . . . . . 3 7 . . Impact 4 | . . . . . . . . . . . . . . . . . . . . . . . 1 3 . . . Slashing . | . . . . . . . . . . . . . . . . . . . . . . . . . . . . Piercing 5 | . . . . . . . . . . . . . . . . . . . . . . . . 5 . . . Sneak Attacks 1 | . . . . . . . . . . . . . . . . . . . . . . . . 1 . . . Combat Hostiles . | . . . . . . . . . . . . . . . . . . . . . . . . . . . . Follow-up Attacks . | . . . . . . . . . . . . . . . . . . . . . . . . . . . . Damage Inflicted 84297 | 47 1965 514 4008 607 6250 465 3961 951 3081 1845 2893 2454 4067 3134 1509 12449 1078 1295 691 1718 16004 1206 2305 1274 1988 2454 4084 Guns 66550 | 47 1965 514 4008 607 6250 465 3660 951 3029 1845 2838 2454 4067 2418 1509 11801 1078 1295 320 1718 8545 483 1039 312 871 1296 1165 Cannons 14446 | . . . . . . . . . . . . . . 34 . . . . 371 . 6269 723 1266 862 1117 1158 2646 Explosions 3165 | . . . . . . . 301 . 52 . 55 . . 682 . 648 . . . . 1190 . . . . . 237 Melee 100 | . . . . . . . . . . . . . . . . . . . . . . . . 100 . . . Ramming 36 | . . . . . . . . . . . . . . . . . . . . . . . . . . . 36 Kinetic 55437 | 47 1965 514 4008 607 6250 465 3660 951 3029 1845 2838 2454 4067 2191 1509 7307 322 301 . 724 6309 483 1039 312 571 504 1165 Thermal 26263 | . . . . . . . . . . . . . . 943 . 5142 756 994 691 994 8779 723 1266 862 1117 1158 2838 Explosive 1307 | . . . . . . . 301 . 52 . 55 . . . . . . . . . 854 . . . . . 45 Electromagnetic 62 | . . . . . . . . . . . . . . . . . . . . . 62 . . . . . . Impact . | . . . . . . . . . . . . . . . . . . . . . . . . . . . . Slashing . | . . . . . . . . . . . . . . . . . . . . . . . . . . . . Piercing 100 | . . . . . . . . . . . . . . . . . . . . . . . . 100 . . . Phasic 1092 | . . . . . . . . . . . . . . . . . . . . . . . . . 300 792 . Highest Corruption 13 | . . . . . 10 10 . . . 1 3 7 7 3 8 13 4 . . . 2 2 2 2 . 1 2 Average Corruption 3 | . . . . . 7 10 . . . 1 2 6 5 2 7 6 2 . . . 1 2 2 2 . 1 1 Corruption Purged 24 | . . . . . . . . . . . . . 7 . . 13 4 . . . . . . . . . . Corruption Blocked . | . . . . . . . . . . . . . . . . . . . . . . . . . . . . Effects 215 | . . . . . 36 6 . . . . 14 26 13 25 9 53 6 . . . 16 3 6 . . 1 1 Message Errors 46 | . . . . . 5 2 . . . . 2 6 2 8 3 10 1 . . . 4 1 2 . . . . Matter Fused 50 | . . . . . 9 2 . . . . 2 5 1 5 2 18 2 . . . 2 1 . . . . 1 Heat Flow Errors 24 | . . . . . 4 1 . . . . 1 3 1 3 . 6 . . . . 2 1 2 . . . . Energy Discharges 23 | . . . . . 4 1 . . . . 2 2 . 2 2 4 1 . . . 4 . . . . 1 . Parts Rejected 4 | . . . . . 2 . . . . . . . 1 . 1 . . . . . . . . . . . . Parts Fused 2 | . . . . . . . . . . . 1 . 1 . . . . . . . . . . . . . . Data Loss (minor) 19 | . . . . . 1 . . . . . 2 5 1 2 . 6 . . . . 1 . 1 . . . . Data Loss (major) 11 | . . . . . 1 . . . . . 1 . 2 3 . 1 2 . . . 1 . . . . . . Misfires 7 | . . . . . 1 . . . . . 1 . 1 1 . 3 . . . . . . . . . . . Alerts 2 | . . . . . . . . . . . . . 1 . . . . . . . . . 1 . . . . Misdirections 1 | . . . . . . . . . . . . . . . . 1 . . . . . . . . . . . Weapon Failures 26 | . . . . . 9 . . . . . 2 5 2 1 1 4 . . . . 2 . . . . . . Overload Shots . | . . . . . . . . . . . . . . . . . . . . . . . . . . . . Overflow Damage 779 | . . . . . . . 61 . 1 . . . . . . 105 . . . . 137 42 90 224 102 . 17 Projectiles 324 | . . . . . . . . . . . . . . . . . . . . . 46 42 90 27 102 . 17 Explosions 258 | . . . . . . . 61 . 1 . . . . . . 105 . . . . 91 . . . . . . Melee 197 | . . . . . . . . . . . . . . . . . . . . . . . . 197 . . . Knockbacks 1 | . . . . . . . . . . . . . . . . . . . . . . . . . . . 1 Impact 1 | . . . . . . . . . . . . . . . . . . . . . . . . . . . 1 Kinetic . | . . . . . . . . . . . . . . . . . . . . . . . . . . . . Secondary . | . . . . . . . . . . . . . . . . . . . . . . . . . . . . Self-Inflicted Damage 231 | . 5 . 73 . . . . . . . . . . 94 . 41 . . . . . . . . . . 18 Shots 6 | . 1 . 1 . . . . . . . . . . 2 . 2 . . . . . . . . . . . Rammed 1 | . . . . . . . . . . . . . . . . . . . . . . . . . . . 1 Targets Rammed 1 | . . . . . . . . . . . . . . . . . . . . . . . . . . . 1 Kicked . | . . . . . . . . . . . . . . . . . . . . . . . . . . . . Crushed . | . . . . . . . . . . . . . . . . . . . . . . . . . . . . Highest Temperature 356 | . 210 . 15 58 156 185 157 3 54 4 269 251 174 255 5 330 278 273 320 20 356 . 96 31 148 224 46 Average Temperature 59 | . 51 . 15 24 30 42 45 3 18 4 149 91 86 96 2 81 103 83 115 8 85 . 78 16 52 85 7 Received Heat Transfer 4952 | . 285 . 381 36 470 . 261 96 369 117 171 144 396 135 . 573 12 54 . 81 513 57 65 67 462 9 198 Effects 7 | . . . . . . . . . . . . . . 3 . . 3 1 . . . . . . . . . Energy Bleed 1 | . . . . . . . . . . . . . . . . . . 1 . . . . . . . . . Interference 6 | . . . . . . . . . . . . . . 3 . . 3 . . . . . . . . . . Siege Activations . | . . . . . . . . . . . . . . . . . . . . . . . . . . . . Martial Activations . | . . . . . . . . . . . . . . . . . . . . . . . . . . . . Shielding Activations . | . . . . . . . . . . . . . . . . . . . . . . . . . . . . Robots Disrupted . | . . . . . . . . . . . . . . . . . . . . . . . . . . . . Combat Hostiles . | . . . . . . . . . . . . . . . . . . . . . . . . . . . . Robots Corrupted . | . . . . . . . . . . . . . . . . . . . . . . . . . . . . Combat Hostiles . | . . . . . . . . . . . . . . . . . . . . . . . . . . . . Parts Fried . | . . . . . . . . . . . . . . . . . . . . . . . . . . . . Impact Corruptions . | . . . . . . . . . . . . . . . . . . . . . . . . . . . . Robots Melted 32 | . . . . . . . . . . . . . . . . . . . 4 . 10 1 3 2 2 1 9 Combat Hostiles 29 | . . . . . . . . . . . . . . . . . . . 4 . 10 1 3 . 2 1 8 Parts Melted 266 | . . . . . . . . . . . . . . 2 . 7 1 2 17 1 108 11 15 5 23 17 57 Heat Transferred 66279 | . . . . . . . . . . . . . . 517 . 4221 650 925 2585 850 25711 2800 4960 2960 4520 4480 11100 Parts Sabotaged 4 | . . . . . . . . . . . . . . . . . . . . . 4 . . . . . . Parts Stolen . | . . . . . . . . . . . . . . . . . . . . . . . . . . . . Parts Stripped . | . . . . . . . . . . . . . . . . . . . . . . . . . . . . Power Chain Reactions 3 | . 1 . . . . . . . . . . . . . . 2 . . . . . . . . . . . Alert | -11 -10 -10 -9 -9 -9 -8 -8 -8 -8 -8 -8 -8 -8 -7 -7 -7 -7 -7 -7 -6 -6 -6 -6 -6 -6 -5 -5 ------- Run | Yrd Mat Min Mat Min Exi Min Mat Gar Mat Gar Mat Gar Mat Fac Was Fac Low Low Dat Pro Fac Low Low Zio Dee Pro Fac Maximum Alert Level 5 | . 3 1 5 3 . 1 4 5 5 5 5 5 5 5 4 5 . . . . 5 . . . . . 3 Low Security (%) 8 | 100 48 . 16 . . 27 6 . . . . . . . . . . . . . 5 . . . . . 50 Level 1 8 | . 20 100 10 . . 72 2 . . . . . . . . . . . . . 12 . . . . . 18 Level 2 5 | . 25 . 15 . . . 13 . . . . . . . . 1 . . . . 4 . . . . . 24 Level 3 27 | . 4 . 13 100 . . 47 10 34 . . . . 39 92 54 . . . . 28 . . . . . 6 Level 4 20 | . . . 28 . . . 29 48 30 27 41 . 9 46 7 11 . . . . 16 . . . . . . Level 5 16 | . . . 16 . . . . 41 27 72 58 100 10 13 . . . . . . 4 . . . . . . High Security 13 | . . . . . . . . . 7 . . . 79 . . 32 . . . . 28 . . . . . . Max Security . | . . . . . . . . . . . . . . . . . . . . . . . . . . . . Sterilizations 6 | . . . 1 . . . 1 . . . 1 . 1 . . 1 . . . . 1 . . . . . . Peak Influence 3416 | 10 755 399 1877 964 . 368 1512 1848 1890 2541 2663 3048 3331 1949 1100 3416 . . . . 3215 . . . . . 735 Initial 1723 | . . 294 116 729 . . 139 975 900 1228 1238 1723 1485 1515 1100 680 . . . . 137 . . . . . 70 Average 1276 | 3 274 332 928 850 . 229 910 1489 1356 1899 1792 2448 2396 1306 1037 1514 . . . . 1360 . . . . . 273 Influence Increases 28029 | 10 1158 175 2213 355 1620 458 1747 873 1668 1313 1775 1335 1926 1496 2 3566 208 253 20 308 3663 272 284 12 . 332 987 Destroy 0b10 Robot/C 17340 | . 640 140 1300 280 1440 340 1060 440 960 700 1020 840 1400 700 . 2160 160 224 16 288 2096 224 208 . . 288 416 Destroy 0b10 Robot/NC 765 | 10 5 5 55 5 . 10 55 . 40 . 60 . 75 125 . 124 8 . . 4 132 4 12 12 . . 24 Destroy Leader 2976 | . 120 30 284 40 . 60 266 20 254 30 278 70 278 136 . 422 40 16 . 16 404 32 40 . . 8 132 Allied During Kill 165 | . . . 61 . . . . . 82 . . . 5 . . . . 13 4 . . . . . . . . Successful Hack 277 | . . . 6 . . . 12 21 3 28 17 . 5 55 . 46 . . . . 73 . . . . . 11 Select Force Hacks 850 | . 130 . 310 . . . 30 . 140 . 210 . 30 . . . . . . . . . . . . . . Disable Machine 1752 | . 45 . 15 15 . 15 135 15 105 30 120 15 45 165 . 336 . . . . 588 . . . . . 108 Anti-Garrison Action 1070 | . . . . . . . . 250 . 400 . 300 . . . 120 . . . . . . . . . . . Destroy Structure 1139 | . 8 . 32 . . 3 99 52 54 110 55 50 28 105 2 139 . . . . 202 . . . . . 200 Partial Spotted 336 | . . . 15 . . . 75 15 30 15 15 . . 60 . 75 . . . . 24 . . . . . 12 Lose Combat Pursuer 1359 | . 210 . 135 15 180 30 15 60 . . . 60 60 150 . 144 . . . . 144 12 24 . . 36 84 Influence Decreases 27734 | 10 403 631 641 1272 1366 1308 605 525 1626 662 1665 938 1643 2878 1397 1122 1479 568 1850 90 666 1370 665 1748 . 220 386 Entered New Map 20426 | . . 461 183 1142 954 1208 219 525 948 662 1303 928 1563 1816 1267 292 1265 408 1830 . 81 1190 403 1736 . . 42 Time Decay 5908 | 10 403 170 398 130 382 100 386 . 278 . 362 . 60 592 130 530 214 160 . 90 565 170 262 12 . 210 294 Lost Part 120 | . . . . . 30 . . . . . . . . 10 . . . . . . 10 10 . . . 10 50 Lost Ally 230 | . . . 60 . . . . . 100 . . 10 20 10 . . . . 20 . 10 . . . . . . Purge Threat 1050 | . . . . . . . . . 300 . . . . 450 . 300 . . . . . . . . . . . Squads Dispatched 178 | . 9 . 15 . . . 11 . 11 . 15 . 13 18 . 38 . . . . 37 . . . . . 11 Investigation 58 | . 9 . 12 . . . 8 . 5 . 8 . 1 7 . 4 . . . . 1 . . . . . 3 Extermination 18 | . . . . . . . . . . . . . . 4 . 7 . . . . 5 . . . . . 2 Reinforcement 32 | . . . . . . . 2 . 3 . 2 . 3 4 . 4 . . . . 10 . . . . . 4 Assault 56 | . . . 3 . . . 1 . 3 . 2 . 9 3 . 19 . . . . 16 . . . . . . Garrison 10 | . . . . . . . . . . . 3 . . . . 4 . . . . 3 . . . . . . Intercept 4 | . . . . . . . . . . . . . . . . . . . . . 2 . . . . . 2 Searches Triggered . | . . . . . . . . . . . . . . . . . . . . . . . . . . . . Unchained Authorized 2 | . . . . . . . . . . . . . . . . . . . . . 1 . . . . . 1 Construction Impeded 4 | . . . . . . . 1 . . . . . 1 . . . . . . . 2 . . . . . . Haulers Reinforced 2 | . . . . . . . . . . . . . . . . . . . . . 2 . . . . . . Active Scanning Responses . | . . . . . . . . . . . . . . . . . . . . . . . . . . . . Cargo Convoy Interrupts 3 | . . . . . . . . . . . . . . 1 . 1 . . . . 1 . . . . . . Stealth | -11 -10 -10 -9 -9 -9 -8 -8 -8 -8 -8 -8 -8 -8 -7 -7 -7 -7 -7 -7 -6 -6 -6 -6 -6 -6 -5 -5 --------- Run | Yrd Mat Min Mat Min Exi Min Mat Gar Mat Gar Mat Gar Mat Fac Was Fac Low Low Dat Pro Fac Low Low Zio Dee Pro Fac Distress Signals 30 | . 2 . 3 . . . 3 . 5 . 2 . 4 3 . 5 . . . . 3 . . . . . . Communications Jammed . | . . . . . . . . . . . . . . . . . . . . . . . . . . . . Distress Signals . | . . . . . . . . . . . . . . . . . . . . . . . . . . . . Times Spotted 1231 | . 56 9 86 13 89 14 66 23 60 30 54 37 83 66 6 191 11 18 4 16 173 14 16 20 16 16 44 Peak Tracking Total 22 | . 7 3 9 4 15 5 10 5 12 3 7 8 9 14 3 10 3 5 2 5 11 4 4 5 3 9 22 Tactical Retreats 69 | . 10 . 3 1 8 2 1 4 . . . 2 4 6 . 10 . . . . 10 1 1 1 1 1 3 Traps | -11 -10 -10 -9 -9 -9 -8 -8 -8 -8 -8 -8 -8 -8 -7 -7 -7 -7 -7 -7 -6 -6 -6 -6 -6 -6 -5 -5 ------- Run | Yrd Mat Min Mat Min Exi Min Mat Gar Mat Gar Mat Gar Mat Fac Was Fac Low Low Dat Pro Fac Low Low Zio Dee Pro Fac Traps Triggered 41 | . 3 . 1 . . . 1 9 . 3 3 6 1 4 . 7 . . . . 3 . . . . . . Indirectly 1 | . . . . . . . . . . . . . . . . 1 . . . . . . . . . . . Trap Hack Attempts . | . . . . . . . . . . . . . . . . . . . . . . . . . . . . Triggered . | . . . . . . . . . . . . . . . . . . . . . . . . . . . . Disarmed . | . . . . . . . . . . . . . . . . . . . . . . . . . . . . Reprogrammed . | . . . . . . . . . . . . . . . . . . . . . . . . . . . . Reused . | . . . . . . . . . . . . . . . . . . . . . . . . . . . . Traps Extracted . | . . . . . . . . . . . . . . . . . . . . . . . . . . . . Installed . | . . . . . . . . . . . . . . . . . . . . . . . . . . . . Triggered . | . . . . . . . . . . . . . . . . . . . . . . . . . . . . Machines | -11 -10 -10 -9 -9 -9 -8 -8 -8 -8 -8 -8 -8 -8 -7 -7 -7 -7 -7 -7 -6 -6 -6 -6 -6 -6 -5 -5 ---------- Run | Yrd Mat Min Mat Min Exi Min Mat Gar Mat Gar Mat Gar Mat Fac Was Fac Low Low Dat Pro Fac Low Low Zio Dee Pro Fac Machines Disabled 191 | . 3 . 1 1 4 1 9 6 7 15 8 6 4 11 . 33 1 3 . 1 62 . 1 3 1 1 9 Max in Single Turn 22 | . 2 . 1 1 1 1 2 1 2 2 2 1 1 2 . 22 1 2 . 1 12 . 1 1 1 1 3 Garrison Access 2 | . . . . . . . . . . . . . . . . 1 . . . . . . . . . . 1 Garrison Relay 16 | . . . . . . . . 5 . 6 . 5 . . . . . . . . . . . . . . . Phase Generator 1 | . . . . . . . . . . 1 . . . . . . . . . . . . . . . . . Machines Repaired . | . . . . . . . . . . . . . . . . . . . . . . . . . . . . Machines Dismantled . | . . . . . . . . . . . . . . . . . . . . . . . . . . . . Machines Sabotaged 11 | . 2 . 5 . . . . . 1 . 3 . . . . . . . . . . . . . . . . Overloaded Fab Kills . | . . . . . . . . . . . . . . . . . . . . . . . . . . . . Hacking | -11 -10 -10 -9 -9 -9 -8 -8 -8 -8 -8 -8 -8 -8 -7 -7 -7 -7 -7 -7 -6 -6 -6 -6 -6 -6 -5 -5 --------- Run | Yrd Mat Min Mat Min Exi Min Mat Gar Mat Gar Mat Gar Mat Fac Was Fac Low Low Dat Pro Fac Low Low Zio Dee Pro Fac Machines Accessed 118 | . 7 1 12 . 1 . 10 2 7 3 8 1 2 16 . 14 2 3 2 1 16 1 . . . . 9 Terminals 78 | . 4 . 8 . . . 6 2 3 3 5 1 1 14 . 13 1 1 . 1 11 . . . . . 4 Fabricators 4 | . . . . . . . . . . . . . . 2 . 1 . . . . 1 . . . . . . Repair Stations 3 | . 1 . 1 . . . 1 . . . . . . . . . . . . . . . . . . . . Recycling Units 15 | . 2 . 2 . . . 1 . 1 . 1 . . . . . . . . . 4 . . . . . 4 Scanalyzers 6 | . . . 1 . . . 1 . 2 . 1 . 1 . . . . . . . . . . . . . . Garrison Access 4 | . . . . . . . 1 . 1 . 1 . . . . . . . . . . . . . . . 1 Total Hacks 246 | . 12 1 20 . 1 . 21 2 15 4 11 2 3 41 . 29 2 7 16 7 31 1 . . . . 20 Successful 142 | . 7 1 12 . 1 . 13 2 10 3 10 . 3 11 . 11 2 7 16 7 16 1 . . . . 9 Failed 104 | . 5 . 8 . . . 8 . 5 1 1 2 . 30 . 18 . . . . 15 . . . . . 11 Catastrophic 30 | . . . 2 . . . 4 . . . . 1 . 11 . 6 . . . . 2 . . . . . 4 Database Lockouts . | . . . . . . . . . . . . . . . . . . . . . . . . . . . . Manual 143 | . 11 . 21 . 1 . 11 . 10 . 10 . 3 21 . 22 . . . . 22 . . . . 1 10 Terminals 173 | . 7 . 15 . . . 11 2 10 4 8 2 2 37 . 28 1 5 . 7 22 . . . . . 12 Fabricators 7 | . . . . . . . . . . . . . . 4 . 1 . . . . 2 . . . . . . Repair Stations 3 | . 1 . 1 . . . 1 . . . . . . . . . . . . . . . . . . . . Recycling Units 28 | . 4 . 3 . . . 4 . 2 . 1 . . . . . . . . . 7 . . . . . 7 Scanalyzers 9 | . . . 1 . . . 4 . 2 . 1 . 1 . . . . . . . . . . . . . . Garrison Access 4 | . . . . . . . 1 . 1 . 1 . . . . . . . . . . . . . . . 1 Terminal Hacks 56 | . . 1 1 . 1 . 1 2 3 3 . . . 5 . 3 2 7 16 7 1 1 . . . . 2 Record 13 | . . . . . . . . . . . . . . . . . 1 5 . 7 . . . . . . . Part Schematic 9 | . . . . . . . . . . . . . . . . . . . 8 . 1 . . . . . . Robot Schematic 5 | . . . . . . . . . . . . . . . . . . . 5 . . . . . . . . Robot Analysis 1 | . . . 1 . . . . . . . . . . . . . . . . . . . . . . . . Prototype ID Bank 3 | . . . . . . . . . . . . . . . . . . . 3 . . . . . . . . Open Door 6 | . . 1 . . . . . 1 . . . . . . . . 1 2 . . . 1 . . . . . Branch Access Points 2 | . . . . . . . . . . . . . . . . 1 . . . . . . . . . . 1 Emergency Access Points 2 | . . . . . . . . 1 . 1 . . . . . . . . . . . . . . . . . Terminal Index 1 | . . . . . . . . . . . . . . 1 . . . . . . . . . . . . . Alert Level 2 | . . . . . . . . . 1 . . . . 1 . . . . . . . . . . . . . Unreport Threat 7 | . . . . . . . . . 2 . . . . 3 . 2 . . . . . . . . . . . Reprogram Traps 1 | . . . . . . . . . . . . . . . . . . . . . . . . . . . 1 Registered Components 1 | . . . . . . . 1 . . . . . . . . . . . . . . . . . . . . Garrison Registry 1 | . . . . . . . . . . 1 . . . . . . . . . . . . . . . . . Patrol Navigation 1 | . . . . . . . . . . 1 . . . . . . . . . . . . . . . . . Proto ID Catalog 1 | . . . . . 1 . . . . . . . . . . . . . . . . . . . . . . Fabricator Hacks 1 | . . . . . . . . . . . . . . 1 . . . . . . . . . . . . . Network Status 1 | . . . . . . . . . . . . . . 1 . . . . . . . . . . . . . Repair Station Hacks . | . . . . . . . . . . . . . . . . . . . . . . . . . . . . Recycling Unit Hacks 11 | . 1 . . . . . 1 . . . . . . . . . . . . . 4 . . . . . 5 Retrieve Matter 1 | . 1 . . . . . . . . . . . . . . . . . . . . . . . . . . Retrieve Components 10 | . . . . . . . 1 . . . . . . . . . . . . . 4 . . . . . 5 Scanalyzer 3 | . . . . . . . 3 . . . . . . . . . . . . . . . . . . . . Insert Component 2 | . . . . . . . 2 . . . . . . . . . . . . . . . . . . . . Retrieve Study 1 | . . . . . . . 1 . . . . . . . . . . . . . . . . . . . . Garrison Access Hacks 4 | . . . . . . . 1 . 1 . 1 . . . . . . . . . . . . . . . 1 Unlock Access 3 | . . . . . . . 1 . 1 . 1 . . . . . . . . . . . . . . . . Seal Access 1 | . . . . . . . . . . . . . . . . . . . . . . . . . . . 1 Unauthorized Hacks 66 | . 6 . 11 . . . 7 . 5 . 9 . 3 5 . 8 . . . . 11 . . . . . 1 Terminals 50 | . 4 . 8 . . . 5 . 2 . 7 . 2 4 . 7 . . . . 10 . . . . . 1 Assimilate 7 | . . . 1 . . . . . . . 1 . . 1 . 2 . . . . 2 . . . . . . Botnet 21 | . . . 1 . . . . . 1 . 1 . 1 3 . 5 . . . . 8 . . . . . 1 Operators 2 | . . . . . . . . . . . 1 . 1 . . . . . . . . . . . . . . Sabotage 17 | . 3 . 5 . . . 4 . 1 . 4 . . . . . . . . . . . . . . . . Search 3 | . 1 . 1 . . . 1 . . . . . . . . . . . . . . . . . . . . Fabricators 3 | . . . . . . . . . . . . . . 1 . 1 . . . . 1 . . . . . . Haulers 3 | . . . . . . . . . . . . . . 1 . 1 . . . . 1 . . . . . . Repair Stations 3 | . 1 . 1 . . . 1 . . . . . . . . . . . . . . . . . . . . Patch 3 | . 1 . 1 . . . 1 . . . . . . . . . . . . . . . . . . . . Recycling Units 4 | . 1 . 1 . . . . . 1 . 1 . . . . . . . . . . . . . . . . Tunnel 4 | . 1 . 1 . . . . . 1 . 1 . . . . . . . . . . . . . . . . Scanalyzers 6 | . . . 1 . . . 1 . 2 . 1 . 1 . . . . . . . . . . . . . . Extract 6 | . . . 1 . . . 1 . 2 . 1 . 1 . . . . . . . . . . . . . . Garrison Access . | . . . . . . . . . . . . . . . . . . . . . . . . . . . . Data Cores Recovered 9 | . . . 1 . . . 3 . 2 . . . . . . 1 . . . . 1 . . . . . 1 Used 1 | . . . . . . . . . 1 . . . . . . . . . . . . . . . . . . Hacking Detections 60 | . 2 . 2 . . . 3 . 3 3 2 1 1 15 . 10 . 1 . . 11 . . . . . 6 Full Trace Events 18 | . . . 2 . . . . . 1 . . 1 . 7 . 3 . . . . 1 . . . . . 3 Feedback Events 2 | . . . . . . . . . . . . . . 1 . . . . . . 1 . . . . . . Corruption 1 | . . . . . . . . . . . . . . . . . . . . . 1 . . . . . . Hackware Fried 1 | . . . . . . . . . . . . . . 1 . . . . . . . . . . . . . Feedback Blocked . | . . . . . . . . . . . . . . . . . . . . . . . . . . . . Robot Schematics Acquired 9 | . . . . . . . . . . . . . . . . . . . 5 . . . . 4 . . . Robots Built . | . . . . . . . . . . . . . . . . . . . . . . . . . . . . Authchips . | . . . . . . . . . . . . . . . . . . . . . . . . . . . . Time . | . . . . . . . . . . . . . . . . . . . . . . . . . . . . Total Robot Build Rating . | . . . . . . . . . . . . . . . . . . . . . . . . . . . . Part Schematics Acquired 49 | . . . 4 . . . 8 . 9 . 1 . 4 . . . . . 8 . 1 . . 14 . . . Parts Built . | . . . . . . . . . . . . . . . . . . . . . . . . . . . . Authchips . | . . . . . . . . . . . . . . . . . . . . . . . . . . . . Time . | . . . . . . . . . . . . . . . . . . . . . . . . . . . . Total Part Build Rating . | . . . . . . . . . . . . . . . . . . . . . . . . . . . . Part Studies Acquired 1 | . . . . . . . 1 . . . . . . . . . . . . . . . . . . . . Parts Repaired . | . . . . . . . . . . . . . . . . . . . . . . . . . . . . Time . | . . . . . . . . . . . . . . . . . . . . . . . . . . . . Parts Recycled . | . . . . . . . . . . . . . . . . . . . . . . . . . . . . Recycled Matter . | . . . . . . . . . . . . . . . . . . . . . . . . . . . . Retrieved Matter . | . . . . . . . . . . . . . . . . . . . . . . . . . . . . Retrieved Components 24 | . . . . . . . 3 . . . . . . . . . . . . . 15 . . . . . 6 Parts Scanalyzed . | . . . . . . . . . . . . . . . . . . . . . . . . . . . . Part Schematics Acquired . | . . . . . . . . . . . . . . . . . . . . . . . . . . . . Parts Damaged . | . . . . . . . . . . . . . . . . . . . . . . . . . . . . Bothacking | -11 -10 -10 -9 -9 -9 -8 -8 -8 -8 -8 -8 -8 -8 -7 -7 -7 -7 -7 -7 -6 -6 -6 -6 -6 -6 -5 -5 ------------ Run | Yrd Mat Min Mat Min Exi Min Mat Gar Mat Gar Mat Gar Mat Fac Was Fac Low Low Dat Pro Fac Low Low Zio Dee Pro Fac Used RIF Installer . | . . . . . . . . . . . . . . . . . . . . . . . . . . . . Robots Hacked . | . . . . . . . . . . . . . . . . . . . . . . . . . . . . Non-combat . | . . . . . . . . . . . . . . . . . . . . . . . . . . . . Combat . | . . . . . . . . . . . . . . . . . . . . . . . . . . . . Robot Hacks Applied . | . . . . . . . . . . . . . . . . . . . . . . . . . . . . Relay Couplers Released 26 | . . . . . . . . 7 . 10 . 9 . . . . . . . . . . . . . . . Machine Destruction 24 | . . . . . . . . 7 . 10 . 7 . . . . . . . . . . . . . . . Programmers 2 | . . . . . . . . . . . . 2 . . . . . . . . . . . . . . . Fabnet Peak Effective % . | . . . . . . . . . . . . . . . . . . . . . . . . . . . . Robots Rewired 10 | . . . . . . . . 3 . . . 2 . . . . 4 . . . . . 1 . . . . Allies Hacked . | . . . . . . . . . . . . . . . . . . . . . . . . . . . . Hacks Repelled . | . . . . . . . . . . . . . . . . . . . . . . . . . . . . Allies | -11 -10 -10 -9 -9 -9 -8 -8 -8 -8 -8 -8 -8 -8 -7 -7 -7 -7 -7 -7 -6 -6 -6 -6 -6 -6 -5 -5 -------- Run | Yrd Mat Min Mat Min Exi Min Mat Gar Mat Gar Mat Gar Mat Fac Was Fac Low Low Dat Pro Fac Low Low Zio Dee Pro Fac Total Allies 20 | . . 3 . . . . . 5 . . 1 2 . 1 . 2 4 . . . 1 . 1 . . . . Largest Group 5 | . . 3 3 . . . . 5 5 . 1 1 2 1 . 2 4 4 4 . 1 . 1 . . . . Highest-Rated Group 85 | . . 40 40 . . . . 85 85 . 10 10 10 26 . 52 64 64 64 . 26 . 54 . . . . Highest-Rated Ally 54 | . . 16 16 . . . . 39 39 . 10 10 5 26 . 26 16 16 16 . 26 . 54 . . . . Initial Warlord ECA Mod 26 | . . . . . . . . . 7 7 19 19 26 25 25 25 25 25 25 24 24 24 24 24 24 23 23 Total Orders 16 | . . . . . . . . . . . 2 2 1 . . 4 . 5 1 . 1 . . . . . . STAY 13 | . . . . . . . . . . . 1 1 1 . . 4 . 4 1 . 1 . . . . . . FOLLOW 3 | . . . . . . . . . . . 1 1 . . . . . 1 . . . . . . . . . Ally Attacks 117 | . . . 28 . . . . . 43 . . . 13 . . . . 26 7 . . . . . . . . Total Damage 1041 | . . . 262 . . . . . 467 . . . 69 . . . . 193 50 . . . . . . . . Kills 12 | . . . 4 . . . . . 7 . . . 1 . . . . . . . . . . . . . . Allies Corrupted . | . . . . . . . . . . . . . . . . . . . . . . . . . . . . Allies Melted . | . . . . . . . . . . . . . . . . . . . . . . . . . . . . Intel | -11 -10 -10 -9 -9 -9 -8 -8 -8 -8 -8 -8 -8 -8 -7 -7 -7 -7 -7 -7 -6 -6 -6 -6 -6 -6 -5 -5 ------- Run | Yrd Mat Min Mat Min Exi Min Mat Gar Mat Gar Mat Gar Mat Fac Was Fac Low Low Dat Pro Fac Low Low Zio Dee Pro Fac Active Infowar (turns) 10430 | . . . . . 6 . 336 565 661 448 823 633 649 1577 54 1794 68 94 66 189 1840 42 . . . 131 454 Optics 485 | . . . . . . . . . 485 . . . . . . . . . . . . . . . . . . Terrain 585 | . . . . . . . . . . . . . . . . . . . . . . . . . . 131 454 Cloaking 9845 | . . . . . 6 . 336 565 661 448 823 633 649 1577 54 1794 68 94 66 189 1840 42 . . . . . Robot Analysis Total 154 | . . . 1 . . . . . . . . . . . . . . . 153 . . . . . . . . Derelict Logs Recovered 15 | . . 1 . 1 . . . . . . . . . . . . 2 1 . 3 . 1 1 2 . 3 . Drone Launches . | . . . . . . . . . . . . . . . . . . . . . . . . . . . . Drone Recoveries . | . . . . . . . . . . . . . . . . . . . . . . . . . . . . Exploration | -11 -10 -10 -9 -9 -9 -8 -8 -8 -8 -8 -8 -8 -8 -7 -7 -7 -7 -7 -7 -6 -6 -6 -6 -6 -6 -5 -5 ------------- Run | Yrd Mat Min Mat Min Exi Min Mat Gar Mat Gar Mat Gar Mat Fac Was Fac Low Low Dat Pro Fac Low Low Zio Dee Pro Fac Turns Passed 20001 | 41 1036 349 956 261 1025 204 907 565 661 448 824 633 649 1887 274 2214 445 325 152 216 2375 344 577 599 900 484 650 Spaces Moved 42347 | 29 1045 654 1387 611 997 502 1796 928 1398 745 1504 992 993 2879 631 5898 1429 1358 145 957 4705 1379 2000 2293 2468 1335 1289 Core 70 | 12 . . . . 1 . . . . . . . . . . . . . . . 30 . . . . . 27 Treads . | . . . . . . . . . . . . . . . . . . . . . . . . . . . . Legs . | . . . . . . . . . . . . . . . . . . . . . . . . . . . . Wheels 369 | 17 352 . . . . . . . . . . . . . . . . . . . . . . . . . . Hover 3917 | . 10 . . . . . . . . . . . . . . . . . . . . . . . 1310 1335 1262 Flight 37991 | . 683 654 1387 611 996 502 1796 928 1398 745 1504 992 993 2879 631 5898 1429 1358 145 957 4675 1379 2000 2293 1158 . . Fastest Speed 13 | 50 37 37 31 31 31 31 28 28 28 28 28 29 29 16 16 13 13 13 13 13 13 17 17 17 17 22 22 Average Speed 22 | 96 57 37 34 31 31 31 28 28 28 28 28 29 29 27 16 14 13 13 15 13 16 17 17 17 22 22 23 Slowest Speed 150 | 150 125 37 37 31 111 31 31 28 28 28 32 29 29 29 16 16 13 13 103 13 109 17 17 99 52 22 100 Overloaded Moves . | . . . . . . . . . . . . . . . . . . . . . . . . . . . . Propulsion Burnouts . | . . . . . . . . . . . . . . . . . . . . . . . . . . . . Robots Hopped 325 | . 18 11 33 6 . 8 28 3 21 . 18 . 16 31 . 85 . 1 . 1 38 4 . . 3 . . Potential Cave-ins . | . . . . . . . . . . . . . . . . . . . . . . . . . . . . Cave-ins Triggered . | . . . . . . . . . . . . . . . . . . . . . . . . . . . . Exploration Rate (%) 83 | 3 86 98 80 93 67 89 95 91 98 95 90 75 85 56 96 93 98 97 79 97 76 95 98 86 89 98 25 Regions Visited 27 Branch Regions 13 Pre-discovered Areas 33 | . 1 1 1 . . . . . 1 . 1 . . . . . 1 1 23 2 . . . 1 . . . Known Exits Taken 14 | . . . . . . . 1 . 1 . 1 . . . . 1 1 1 1 1 1 1 1 1 1 1 . Unknown Exits Taken 8 | 1 1 1 1 1 1 1 . . . . . . 1 . . . . . . . . . . . . . . Scrap Searched 44 | . . 3 . 2 . . . . . . . . . . . . 11 5 . 3 . 9 4 3 . 4 . Spaces Dug 48 | . . . . . . . . . . . . . . 24 1 2 . . . . . 4 . . 2 . 15 Terrain Destroyed 1284 | . 1 . 30 . . 10 126 26 43 174 57 29 31 104 3 158 3 26 5 10 231 17 25 2 28 15 130 Melee . | . . . . . . . . . . . . . . . . . . . . . . . . . . . . Projectile 503 | . . . . . . 10 44 24 28 27 32 24 29 14 1 43 3 26 5 10 66 17 23 2 27 14 34 AOE 709 | . 1 . 30 . . . 79 . 13 141 21 . . 68 . 107 . . . . 153 . . . . . 96 Terrain Rammed . | . . . . . . . . . . . . . . . . . . . . . . . . . . . . Walls Destroyed . | . . . . . . . . . . . . . . . . . . . . . . . . . . . . Machines Disabled . | . . . . . . . . . . . . . . . . . . . . . . . . . . . . Actions | -11 -10 -10 -9 -9 -9 -8 -8 -8 -8 -8 -8 -8 -8 -7 -7 -7 -7 -7 -7 -6 -6 -6 -6 -6 -6 -5 -5 --------- Run | Yrd Mat Min Mat Min Exi Min Mat Gar Mat Gar Mat Gar Mat Fac Was Fac Low Low Dat Pro Fac Low Low Zio Dee Pro Fac Total 49975 | 36 1360 724 1667 648 1467 525 2063 1168 1532 898 1769 1221 1207 3814 765 6961 1674 1492 257 1029 5956 1444 2155 2421 2727 1470 1525 Wait 3884 | . 223 61 148 17 174 5 153 4 22 18 161 16 79 740 36 616 173 102 81 25 746 8 41 28 75 48 84 Move 41690 | 28 1009 631 1323 598 996 485 1741 921 1356 744 1469 990 960 2819 630 5734 1428 1355 144 954 4630 1370 1999 2292 2461 1334 1289 Hop 304 | . 17 11 30 6 . 8 26 3 20 . 16 . 15 29 . 78 . 1 . 1 36 4 . . 3 . . Pick Up 44 | . . . . . 10 . 1 . . . . . 1 4 . 5 . . . . 4 . . 5 8 3 3 Fast Attach 86 | 4 5 3 6 1 10 . 1 . 1 . . . 2 9 1 4 . . . . 9 2 1 6 20 1 . Attach 16 | . . . . . . . 2 . . . . . . . . 2 . . . . 1 . . 4 3 2 2 Detach 12 | . . 1 . . 2 . 2 . . . . . . 1 . . . . . . . . . 2 3 1 . Swap 117 | . 5 1 3 . 10 . 4 . 2 . 6 . 1 15 . 15 3 . 4 2 21 . . 12 11 2 . Drop 81 | . 2 . 2 . 17 . 2 . . . 3 . . 12 . 6 . . . . 4 1 . 3 23 3 3 Fire 2303 | 4 61 14 93 16 156 12 78 49 89 70 86 92 103 152 74 356 22 24 28 32 356 32 73 47 44 44 96 Melee 19 | . . . . . . . . . . . . . . . . . . . . . . . 1 11 7 . . Ram 1 | . . . . . . . . . . . . . . . . . . . . . . . . . . . 1 Kick . | . . . . . . . . . . . . . . . . . . . . . . . . . . . . Crush . | . . . . . . . . . . . . . . . . . . . . . . . . . . . . Escape Stasis 244 | . . . . . . . . 114 . 35 . 90 1 4 . . . . . . . . . . . . . Rewire 96 | . . . . . . . . 56 . . . 2 . . . . 30 . . . . . 8 . . . . Trap . | . . . . . . . . . . . . . . . . . . . . . . . . . . . . Miscellaneous 1078 | . 38 2 62 10 92 15 53 21 42 31 28 31 45 29 24 145 18 10 . 15 149 27 32 11 69 32 47 Route ------- -11/Scrapyard -10/Materials (discovered 5 exits: *Mat x2 / *Min x2 / [*Sub]) -10/Mines (discovered 2 exits: *Mat x2) -9/Materials (discovered 4 exits: *Mat / [*Min x2] / [*Sto]) -9/Mines (discovered 3 exits: *Mat x2 / *Exi) -9/Exiles (discovered 2 exits: [*Min x2]) -8/Mines -8/Materials (discovered 4 exits: *Fac x3 / Gar) -8/Garrison (discovered 4 exits: *Fac x3 / *Mat) -8/Materials (discovered 4 exits: *Fac x3 / Gar) -8/Garrison (discovered 3 exits: *Mat x3) -8/Materials (discovered 3 exits: *Fac x2 / Gar) -8/Garrison (discovered 4 exits: *Mat x4) -8/Materials (discovered 3 exits: *Fac x3) -7/Factory (discovered 2 exits: *Fac / *Low) -7/Waste -7/Factory (discovered 6 exits: *Fac x4 / *Low x2) -7/Lower Caves -7/Lower Caves (discovered 2 exits: *Fac / *Dat) -7/Data Miner -6/Proximity Caves -6/Factory (discovered 8 exits: *Fac x4 / *Low x2 / *Ext x2) -6/Lower Caves (discovered 2 exits: *Low / *Zio) -6/Lower Caves (discovered 2 exits: *Fac / *Zio) -6/Zion (discovered 2 exits: *Dee / [*Pro]) -6/Deep Caves -5/Proximity Caves -5/Factory (discovered 5 exits: *Fac x3 / *Upp x2) History --------- Turn | Location | Event 1 | -11/Scrapyard | Upgraded with Propulsion slot (x1) 1 | -11/Scrapyard | Upgraded with Utility slot (x1) 1 | -11/Scrapyard | Upgraded with Weapon slot (x2) 22 | -11/Scrapyard | Discovered new exit (range 15) 42 | -11/Scrapyard | Entered Materials 124 | -10/Materials | Discovered new exit (range 16) 412 | -10/Materials | Build established: Gunner 429 | -10/Materials | Reached level 2 590 | -10/Materials | Discovered new exit (range 16) 648 | -10/Materials | Upgraded with Utility slot (x1) 736 | -10/Materials | Discovered new exit (range 16) 749 | -10/Materials | Discovered new exit (range 8) 765 | -10/Materials | Reached level 3 771 | -10/Materials | Upgraded with Weapon slot (x1) 1028 | -10/Materials | Reached level 4 1056 | -10/Materials | Discovered new exit (range 10) 1078 | -10/Materials | Entered Mines 1110 | -10/Mines | YI-UF0 nonchalantly dropped a Grenade Launcher on the ground 1130 | -10/Mines | Destroyed YI-UF0 1138 | -10/Mines | Found Prototype Storage 1138 | -10/Mines | Identified YI-UF0's Bottomless Matter Pit 1145 | -10/Mines | Discovered new exit (range 9) 1217 | -10/Mines | Learned location of Zion (-6) 1223 | -10/Mines | Discovered new exit (range 3) 1226 | -10/Mines | Reached level 5 1240 | -10/Mines | Assisted by bots powering up and referring to "LRC-V3" 1313 | -10/Mines | Met a Derelict who couldn't figure out how to use a Trap Extractor 1324 | -10/Mines | Upgraded with Utility slot (x1) 1427 | -10/Mines | Entered Materials 1427 | -9/Materials | Accompanied by 3 allies 1429 | -9/Materials | Reached level 6 1435 | -9/Materials | Upgraded with Propulsion slot (x1) 1435 | -9/Materials | Upgraded with Utility slot (x1) 1539 | -9/Materials | Discovered new exit (range 9) 1652 | -9/Materials | Reached level 7 1697 | -9/Materials | Core integrity fell below 50% 1743 | -9/Materials | Lost 3 allies 1754 | -9/Materials | Destroyed 10 combat bots 1756 | -9/Materials | Discovered new exit (range 12) 1776 | -9/Materials | Reached level 8 1815 | -9/Materials | Discovered new exit (range 10) 1827 | -9/Materials | First assault squad dispatched 1860 | -9/Materials | Destroyed 8 combat bots 1905 | -9/Materials | Discovered new exit (range 16) 1922 | -9/Materials | Reached level 9 1956 | -9/Materials | Build established: Scavenger-Gunner 2018 | -9/Materials | Destroyed 11 combat bots 2099 | -9/Materials | Upgraded with Utility slot (x1) 2226 | -9/Materials | Reached level 10 2249 | -9/Materials | Sterilization system engaged 2249 | -9/Materials | Non-combat units ordered to evacuate 2264 | -9/Materials | Destroyed 7 combat bots 2349 | -9/Materials | Combat units ordered to evacuate 2369 | -9/Materials | Upgraded with Propulsion slot (x1) 2369 | -9/Materials | Upgraded with Utility slot (x1) 2370 | -9/Materials | Destroyed 9 combat bots 2383 | -9/Materials | Entered Mines 2393 | -9/Mines | Deemed a non-threat by the Exiles lab entrance 2394 | -9/Mines | Discovered new exit (range 5) 2507 | -9/Mines | Learned Materials security intel 2511 | -9/Mines | Received a Rocket Launcher from a helpful Derelict 2539 | -9/Mines | Discovered new exit (range 7) 2612 | -9/Mines | Discovered new exit (range 9) 2644 | -9/Mines | Entered Exiles 2653 | -9/Exiles | Met 8R-AWN 2658 | -9/Exiles | Met EX-HEX 2666 | -9/Exiles | Met EX-BIN 2671 | -9/Exiles | Aligned with FarCom system 2671 | -9/Exiles | Given EX-Vault access code 2678 | -9/Exiles | Build established: Scavenger-Sprinter 2678 | -9/Exiles | Opened EX-Vault 2686 | -9/Exiles | Warned to stay clear of 0b10 Research branches 2692 | -9/Exiles | Exiles lab attacked by MAIN.C 2741 | -9/Exiles | Reached level 11 2771 | -9/Exiles | Attacked by the Exiles 2806 | -9/Exiles | Core integrity fell below 20% 2829 | -9/Exiles | Destroyed 13 combat bots 2840 | -9/Exiles | Destroyed 8R-AWN 3008 | -9/Exiles | Destroyed 20 combat bots 3063 | -9/Exiles | Destroyed 7 combat bots 3176 | -9/Exiles | Destroyed 13 combat bots 3344 | -9/Exiles | Reached level 12 3390 | -9/Exiles | Destroyed 19 combat bots 3396 | -9/Exiles | Build established: Gunner 3403 | -9/Exiles | Discovered new exit (range 14) 3426 | -9/Exiles | Found Prototype Device 3426 | -9/Exiles | Identified AS-neutralizer No. 17b 3431 | -9/Exiles | Found Prototype Processor 3431 | -9/Exiles | Identified Exp. Targeting Computer 3464 | -9/Exiles | Found Corrupted Prototype Ballistic Gun 3464 | -9/Exiles | Identified 8R-AWN's Boregun 3466 | -9/Exiles | Found Corrupted 8R-AWN's Boregun 3467 | -9/Exiles | System corruption reached 10% 3605 | -9/Exiles | Found Cloak of Protection 3611 | -9/Exiles | Found 0b10 Alert Chip 3614 | -9/Exiles | Found Modified TNC 3665 | -9/Exiles | Discovered new exit (range 14) 3669 | -9/Exiles | Stole three prototypes: Cloak of Protection, Modified TNC, 0b10 Alert Chip 3669 | -9/Exiles | Entered Mines 3696 | -8/Mines | Discovered new exit (range 5) 3725 | -8/Mines | Build established: Scavenger-Sprinter 3759 | -8/Mines | Destroyed 11 combat bots 3873 | -8/Mines | Entered Materials 3875 | -8/Materials | Reached level 13 3986 | -8/Materials | Destroyed 11 combat bots 4010 | -8/Materials | Discovered new exit (range 11) 4075 | -8/Materials | Discovered new exit (range 15) 4093 | -8/Materials | Reached level 14 4114 | -8/Materials | Destroyed 9 combat bots 4323 | -8/Materials | Discovered new exit (range 7) 4394 | -8/Materials | Identified exit to Garrison 4673 | -8/Materials | First assault squad dispatched 4766 | -8/Materials | Sterilization system engaged 4766 | -8/Materials | Non-combat units ordered to evacuate 4780 | -8/Materials | Entered Garrison 4788 | -8/Garrison | Triggered checkpoint 4788 | -8/Garrison | Garrison Relay disabled 4810 | -8/Garrison | Triggered checkpoint 4866 | -8/Garrison | Garrison Relay disabled 4868 | -8/Garrison | Triggered checkpoint 4873 | -8/Garrison | Reached level 15 4889 | -8/Garrison | Upgraded with Utility slot (x1) 4923 | -8/Garrison | Discovered new exit (range 12) 4936 | -8/Garrison | Triggered checkpoint 4950 | -8/Garrison | Triggered checkpoint 4974 | -8/Garrison | Triggered checkpoint 4989 | -8/Garrison | Garrison Relay disabled 5001 | -8/Garrison | Discovered new exit (range 6) 5014 | -8/Garrison | Triggered checkpoint 5031 | -8/Garrison | Discovered new exit (range 15) 5105 | -8/Garrison | Garrison Relay disabled 5112 | -8/Garrison | Triggered checkpoint 5134 | -8/Garrison | Rescued a captive Derelict 5135 | -8/Garrison | Rescued a captive Derelict 5144 | -8/Garrison | Discovered new exit (range 9) 5162 | -8/Garrison | Triggered checkpoint 5217 | -8/Garrison | Garrison Relay disabled 5345 | -8/Garrison | Entered Materials 5345 | -8/Materials | Accompanied by 5 allies 5422 | -8/Materials | Discovered new exit (range 16) 5587 | -8/Materials | Discovered new exit (range 11) 5745 | -8/Materials | First assault squad dispatched 5799 | -8/Materials | Reached level 16 5822 | -8/Materials | Destroyed 14 combat bots 5837 | -8/Materials | Discovered new exit (range 8) 5891 | -8/Materials | Identified exit to Garrison 5957 | -8/Materials | High security lockdown imminent 6006 | -8/Materials | Entered Garrison 6010 | -8/Garrison | Triggered checkpoint 6042 | -8/Garrison | Garrison Relay disabled 6068 | -8/Garrison | Phase Generator disabled 6097 | -8/Garrison | Triggered checkpoint 6126 | -8/Garrison | Discovered new exit (range 13) 6201 | -8/Garrison | Garrison Relay disabled 6203 | -8/Garrison | Garrison Relay disabled 6210 | -8/Garrison | Triggered checkpoint 6233 | -8/Garrison | Destroyed 20 combat bots 6295 | -8/Garrison | Triggered checkpoint 6295 | -8/Garrison | Triggered checkpoint 6313 | -8/Garrison | Triggered checkpoint 6352 | -8/Garrison | Triggered checkpoint 6353 | -8/Garrison | Discovered new exit (range 11) 6402 | -8/Garrison | Garrison Relay disabled 6410 | -8/Garrison | Garrison Relay disabled 6414 | -8/Garrison | Triggered checkpoint 6435 | -8/Garrison | Discovered new exit (range 3) 6448 | -8/Garrison | Discovered new exit (range 15) 6448 | -8/Garrison | Discovered new exit (range 55) 6448 | -8/Garrison | Discovered new exit (range 49) 6454 | -8/Garrison | Entered Materials 6559 | -8/Materials | Discovered new exit (range 3) 6757 | -8/Materials | Discovered new exit (range 5) 6780 | -8/Materials | Garrison activated, responded to threat 6854 | -8/Materials | First assault squad dispatched 7067 | -8/Materials | Identified exit to Garrison 7073 | -8/Materials | Destroyed 9 combat bots 7105 | -8/Materials | Reached level 17 7180 | -8/Materials | Destroyed 11 combat bots 7246 | -8/Materials | Sterilization system engaged 7246 | -8/Materials | Non-combat units ordered to evacuate 7278 | -8/Materials | Entered Garrison 7278 | -8/Garrison | Accompanied by 1 ally 7339 | -8/Garrison | Garrison Relay disabled 7424 | -8/Garrison | Triggered checkpoint 7424 | -8/Garrison | Triggered checkpoint 7485 | -8/Garrison | Triggered checkpoint 7524 | -8/Garrison | Destroyed 7 combat bots 7541 | -8/Garrison | Garrison Relay disabled 7546 | -8/Garrison | Garrison Relay disabled 7592 | -8/Garrison | Triggered checkpoint 7622 | -8/Garrison | Triggered checkpoint 7636 | -8/Garrison | Discovered new exit (range 14) 7696 | -8/Garrison | Garrison Relay disabled 7731 | -8/Garrison | Triggered checkpoint 7748 | -8/Garrison | Discovered new exit (range 13) 7766 | -8/Garrison | Discovered new exit (range 6) 7767 | -8/Garrison | Destroyed 8 combat bots 7782 | -8/Garrison | Triggered checkpoint 7805 | -8/Garrison | Garrison Relay disabled 7814 | -8/Garrison | Discovered new exit (range 11) 7884 | -8/Garrison | Triggered checkpoint 7911 | -8/Garrison | Entered Materials 7911 | -8/Materials | Accompanied by 2 allies 8043 | -8/Materials | High security lockdown imminent 8044 | -8/Materials | Discovered new exit (range 16) 8062 | -8/Materials | Destroyed 14 combat bots 8121 | -8/Materials | Discovered new exit (range 15) 8123 | -8/Materials | High security lockdown engaged 8168 | -8/Materials | Destroyed 7 combat bots 8315 | -8/Materials | Destroyed 20 combat bots 8380 | -8/Materials | Sterilization system engaged 8380 | -8/Materials | Non-combat units ordered to evacuate 8433 | -8/Materials | Destroyed 16 combat bots 8480 | -8/Materials | Combat units ordered to evacuate 8497 | -8/Materials | Discovered new exit (range 11) 8560 | -8/Materials | Entered Factory 8588 | -7/Factory | Discovered new exit (range 13) 8664 | -7/Factory | Reached level 18 8780 | -7/Factory | Discovered new exit (range 16) 8960 | -7/Factory | First assault squad dispatched 9224 | -7/Factory | Identified exit to Factory 9299 | -7/Factory | Hacking Suite fried by hacking feedback 10036 | -7/Factory | Cargo convoy interrupted 10117 | -7/Factory | Found Prototype Energy Cannon 10117 | -7/Factory | Identified Exp. Thermic Cannon 10124 | -7/Factory | Destroyed 8 combat bots 10217 | -7/Factory | Destroyed 7 combat bots 10435 | -7/Factory | High security lockdown imminent 10447 | -7/Factory | Sucked down chute 10447 | -7/Factory | Entered Waste 10451 | -7/Waste | Spotted C-40 Crusher 10452 | -7/Waste | Spotted C-40 Crusher 10462 | -7/Waste | EMP discharged 10488 | -7/Waste | Spotted C-40 Crusher 10493 | -7/Waste | Spotted C-40 Crusher 10496 | -7/Waste | Spotted C-40 Crusher 10542 | -7/Waste | Destroyed C-40 Crusher 10545 | -7/Waste | Destroyed C-40 Crusher 10562 | -7/Waste | EMP discharged 10570 | -7/Waste | Lost 12 allies 10584 | -7/Waste | Destroyed C-40 Crusher 10588 | -7/Waste | Spotted C-40 Crusher 10590 | -7/Waste | Destroyed C-40 Crusher 10598 | -7/Waste | Discovered new exit (range 12) 10662 | -7/Waste | EMP discharged 10697 | -7/Waste | Destroyed C-40 Crusher 10721 | -7/Waste | Identified exit to Factory 10721 | -7/Waste | Entered Factory 10830 | -7/Factory | Discovered exit to Factory (range 10) 11007 | -7/Factory | Discovered exit to Factory (range 9) 11015 | -7/Factory | Destroyed 7 combat bots 11042 | -7/Factory | Build established: Scavenger-Scout 11062 | -7/Factory | System corruption reached 10% 11321 | -7/Factory | Discovered exit to Factory (range 16) 11388 | -7/Factory | Identified exit to Lower Caves 11394 | -7/Factory | Reached level 19 11425 | -7/Factory | Watched by a mysterious "MATRIX" hacker 11658 | -7/Factory | Upgraded with Propulsion slot (x1) 11921 | -7/Factory | First assault squad dispatched 11976 | -7/Factory | Cargo convoy interrupted 12022 | -7/Factory | Garrison activated, responded to threat 12082 | -7/Factory | Destroyed 11 combat bots 12212 | -7/Factory | High security lockdown imminent 12292 | -7/Factory | High security lockdown engaged 12359 | -7/Factory | Destroyed 8 combat bots 12522 | -7/Factory | Destroyed 18 combat bots 12613 | -7/Factory | Destroyed 13 combat bots 12723 | -7/Factory | Sterilization system engaged 12723 | -7/Factory | Non-combat units ordered to evacuate 12748 | -7/Factory | Destroyed 22 combat bots 12776 | -7/Factory | Found Prototype Launcher 12776 | -7/Factory | Identified Rocket Array 12823 | -7/Factory | Combat units ordered to evacuate 12855 | -7/Factory | Discovered exit to Factory (range 15) 12868 | -7/Factory | Destroyed 8 combat bots 12935 | -7/Factory | Entered Lower Caves 12951 | -7/Lower Caves | Met a Warlord Commander 12952 | -7/Lower Caves | Learned location of Warlord (-4) 12953 | -7/Lower Caves | Warlord Commander delivered Encrypted Comm Array 12957 | -7/Lower Caves | Learned 8 Factory zone layouts 12961 | -7/Lower Caves | Encountered a Warlord checkpoint 13110 | -7/Lower Caves | Spotted B-75 Beast 13127 | -7/Lower Caves | Destroyed B-75 Beast 13215 | -7/Lower Caves | Learned 8 Factory zone layouts 13247 | -7/Lower Caves | Discovered new exit (range 11) 13248 | -7/Lower Caves | Identified exit to Lower Caves 13380 | -7/Lower Caves | Entered another Lower Caves area 13380 | -7/Lower Caves | Accompanied by 4 allies 13382 | -7/Lower Caves | Reached level 20 13399 | -7/Lower Caves | Discovered exit to Factory (range 12) 13422 | -7/Lower Caves | Learned location of Extension (-6) 13439 | -7/Lower Caves | Learned Factory terminal intel 13439 | -7/Lower Caves | Learned Factory security intel 13439 | -7/Lower Caves | Learned Armory garrison access intel 13440 | -7/Lower Caves | Attracted the attention of an 0b10 base 13488 | -7/Lower Caves | Destroyed 11 combat bots 13507 | -7/Lower Caves | Encountered a Master Thief 13521 | -7/Lower Caves | Encountered a Master Thief 13521 | -7/Lower Caves | Encountered a Master Thief 13522 | -7/Lower Caves | Encountered a Master Thief 13545 | -7/Lower Caves | Encountered a Master Thief 13630 | -7/Lower Caves | Discovered new exit (range 8) 13631 | -7/Lower Caves | Identified exit to Data Miner 13705 | -7/Lower Caves | Entered Data Miner 13705 | -7/Data Miner | Accompanied by 4 allies 13705 | -7/Data Miner | Discovered new exit (range 6) 13708 | -7/Data Miner | Met Data Miner 13713 | -7/Data Miner | Received God Mode back door access code from Data Miner 13751 | -7/Data Miner | Destroyed Data Miner 13754 | -7/Data Miner | Interfaced with the Data Conduit 13789 | -7/Data Miner | Lost 4 allies 13857 | -7/Data Miner | Identified exit to Proximity Caves 13857 | -7/Data Miner | Entered Proximity Caves 13887 | -6/Proximity Caves | Learned Factory security intel 13949 | -6/Proximity Caves | Attracted the attention of an 0b10 checkpoint 13974 | -6/Proximity Caves | Attracted the attention of an 0b10 base 13986 | -6/Proximity Caves | Learned 8 Research zone layouts 13986 | -6/Proximity Caves | Learned Armory emergency access door positions 13986 | -6/Proximity Caves | Learned Extension security intel 14004 | -6/Proximity Caves | Destroyed 8 combat bots 14073 | -6/Proximity Caves | Entered Factory 14074 | -6/Factory | Identified exit to Factory 14074 | -6/Factory | Identified exit to Lower Caves 14077 | -6/Factory | Loaded intel: 306 machine locations 14078 | -6/Factory | Loaded intel: 28 terminal locations 14152 | -6/Factory | Unchained authorized (6S-H0T) 14223 | -6/Factory | Spotted 6S-H0T 14309 | -6/Factory | Core integrity fell below 50% 14322 | -6/Factory | Destroyed 6S-H0T 14322 | -6/Factory | Reached level 21 14349 | -6/Factory | Discovered new exit (range 13) 14350 | -6/Factory | Identified exit to Extension 14437 | -6/Factory | Intercept squad dispatched 14444 | -6/Factory | Spotted Tracker 14448 | -6/Factory | Destroyed Tracker 14473 | -6/Factory | Spotted Combat Programmer 14477 | -6/Factory | Destroyed Combat Programmer 14488 | -6/Factory | Allied Derelicts emerged from ambush trap array 14528 | -6/Factory | Spotted B-75 Beast 14550 | -6/Factory | Destroyed B-75 Beast 14586 | -6/Factory | Garrison activated, responded to threat 14623 | -6/Factory | Cargo convoy interrupted 14643 | -6/Factory | Destroyed 13 combat bots 14654 | -6/Factory | Found Exp. Target Analyzer 14656 | -6/Factory | Found Exp. Target Analyzer 14672 | -6/Factory | Lost 4 allies 14753 | -6/Factory | Destroyed 14 combat bots 15123 | -6/Factory | First assault squad dispatched 15257 | -6/Factory | Discovered exit to Extension (range 16) 15442 | -6/Factory | Intercept squad dispatched 15461 | -6/Factory | Spotted Tracker 15481 | -6/Factory | Destroyed Tracker 15485 | -6/Factory | Spotted Combat Programmer 15498 | -6/Factory | Destroyed Combat Programmer 15762 | -6/Factory | Reached level 22 15762 | -6/Factory | High security lockdown imminent 15821 | -6/Factory | Upgraded with Power slot (x1) 15842 | -6/Factory | High security lockdown engaged 16040 | -6/Factory | Destroyed 17 combat bots 16177 | -6/Factory | Destroyed 21 combat bots 16249 | -6/Factory | Destroyed 15 combat bots 16253 | -6/Factory | Sterilization system engaged 16253 | -6/Factory | Non-combat units ordered to evacuate 16298 | -6/Factory | Destroyed 11 combat bots 16353 | -6/Factory | Combat units ordered to evacuate 16448 | -6/Factory | Entered Lower Caves 16564 | -6/Lower Caves | Learned 8 Factory zone layouts 16593 | -6/Lower Caves | Destroyed 14 combat bots 16599 | -6/Lower Caves | Discovered new exit (range 4) 16599 | -6/Lower Caves | Identified exit to Lower Caves 16606 | -6/Lower Caves | Encountered a Warlord checkpoint 16618 | -6/Lower Caves | A Derelict revealed a hidden shortcut to a safe place 16733 | -6/Lower Caves | Identified exit to Zion 16792 | -6/Lower Caves | Entered another Lower Caves area 16830 | -6/Lower Caves | Encountered a Warlord checkpoint 16893 | -6/Lower Caves | Spotted B-75 Beast 16901 | -6/Lower Caves | Destroyed B-75 Beast 16979 | -6/Lower Caves | Attacked by a delusional Derelict stockpiling parts 17004 | -6/Lower Caves | Encountered a Master Thief 17006 | -6/Lower Caves | Encountered a Master Thief 17024 | -6/Lower Caves | Encountered a Master Thief 17042 | -6/Lower Caves | Encountered a Master Thief 17263 | -6/Lower Caves | Discovered exit to Factory (range 10) 17347 | -6/Lower Caves | Discovered exit to Zion (range 15) 17352 | -6/Lower Caves | Learned Factory trap positions 17369 | -6/Lower Caves | Entered Zion 17385 | -6/Zion | Found Unknown Piercing Weapon 17389 | -6/Zion | Identified CR-A16's Pointy Stick 17396 | -6/Zion | Discovered new exit (range 11) 17413 | -6/Zion | System corruption cleaned by Quarantine Array 17417 | -6/Zion | Given the Hacking Drone Bay 17436 | -6/Zion | Learned location of 1 exit from Lower Caves 17625 | -6/Zion | Found Prototype Special Weapon 17625 | -6/Zion | Identified RU-N14's Throwing Claymores 17633 | -6/Zion | Found RU-N14's Throwing Claymores 17634 | -6/Zion | Found RU-N14's Throwing Claymores 17637 | -6/Zion | Found RU-N14's Throwing Claymores 17812 | -6/Zion | Attacked by Zionites 17874 | -6/Zion | Lost 3 parts (3p) 17914 | -6/Zion | Discovered new exit (range 4) 17914 | -6/Zion | Saw the warning signs outside the Deep Caves entrance 17968 | -6/Zion | Identified exit to Deep Caves 17968 | -6/Zion | Entered Deep Caves 18043 | -6/Deep Caves | Attacked by Z-Imprinter 18087 | -6/Deep Caves | Lost 3 parts (3p) 18101 | -6/Deep Caves | Core integrity fell below 20% 18142 | -6/Deep Caves | Destroyed Z-Imprinter 18145 | -6/Deep Caves | Found Prototype Device 18145 | -6/Deep Caves | Identified Zio. Metafield Generator 18276 | -6/Deep Caves | Spotted Golem 18352 | -6/Deep Caves | Found Prototype Protection 18352 | -6/Deep Caves | Identified Zio. Weapon Casing 18428 | -6/Deep Caves | Found Prototype Protection 18428 | -6/Deep Caves | Identified Zio. Heavy Carapace 18558 | -6/Deep Caves | Found Surveybot 24 Scanner 18560 | -6/Deep Caves | Found Surveybot 24 Chip 18590 | -6/Deep Caves | Found Zio. Heavy Carapace 18594 | -6/Deep Caves | Found Zio. Weapon Casing 18654 | -6/Deep Caves | Spotted Golem 18674 | -6/Deep Caves | Destroyed Golem 18735 | -6/Deep Caves | Destroyed Golem 18867 | -6/Deep Caves | Discovered new exit (range 6) 18868 | -6/Deep Caves | Identified exit to Proximity Caves 18868 | -6/Deep Caves | Entered Proximity Caves 18870 | -5/Proximity Caves | Reached level 23 18875 | -5/Proximity Caves | Acquired the password to a Derelict Tinkerer's latest research 18925 | -5/Proximity Caves | Caught by Unaware searching for contraband prototypes 18937 | -5/Proximity Caves | Caught by Unaware searching for contraband prototypes 18984 | -5/Proximity Caves | Learned location of 1 exit from Factory 19013 | -5/Proximity Caves | Learned Factory emergency access door positions 19062 | -5/Proximity Caves | Discovered exit to Factory (range 11) 19215 | -5/Proximity Caves | Destroyed 9 combat bots 19235 | -5/Proximity Caves | Learned location of 1 exit from Factory 19313 | -5/Proximity Caves | Found Prototype Special Weapon 19313 | -5/Proximity Caves | Identified Molecular Deconstructor 19352 | -5/Proximity Caves | Entered Factory 19353 | -5/Factory | Identified exit to Upper Caves 19353 | -5/Factory | Identified exit to Factory 19355 | -5/Factory | Loaded intel: 91 trap records 19358 | -5/Factory | Loaded intel: 321 machine locations 19448 | -5/Factory | Discovered exit to Factory (range 15) 19460 | -5/Factory | Unchained authorized (V4-D3R) 19648 | -5/Factory | Discovered exit to Factory (range 18) 19795 | -5/Factory | Intercept squad dispatched 19805 | -5/Factory | Spotted Tracker 19814 | -5/Factory | Destroyed Tracker 19835 | -5/Factory | Reached level 24 19845 | -5/Factory | Spotted Combat Programmer 19856 | -5/Factory | Destroyed 7 combat bots 19859 | -5/Factory | Destroyed Combat Programmer 19917 | -5/Factory | Intercept squad dispatched 19935 | -5/Factory | Spotted Tracker 19936 | -5/Factory | Spotted Tracker 19943 | -5/Factory | Destroyed Tracker 19971 | -5/Factory | Spotted Combat Programmer 19977 | -5/Factory | Core integrity fell below 50% 19977 | -5/Factory | Spotted Combat Programmer 19985 | -5/Factory | Destroyed Combat Programmer 19991 | -5/Factory | Spotted V4-D3R 19999 | -5/Factory | Core integrity fell below 20% 20002 | -5/Factory | Destroyed by thrown Wall Last Messages --------------- Smashed by Carbon-fiber Leg. Smashed by Wall. 19994_ HV Slug penetrates V4-D3R. 19994_ V4-D3R suffers critical hit (Destroy). 19994_ HV Slug penetrates Earth. V4-D3R: "We would be honored if you would join us." Pulled to V4-D3R. 19996_ Upgraded: Core Integrity (+100) 19996_ HV Slug penetrates Wall. 19996_ Zio. Glidesys I destroyed. 19998_ HV Slug penetrates V4-D3R. 19998_ HV Slug penetrates Earth. 20000_ Acquired 19 matter. Pulled to V4-D3R. 20001_ Zio. Glidesys I destroyed. Smashed by Imp. Sensor Array. Smashed by Wall. 20002_ Zio. Glidesys I destroyed. 20002_ System corrupted by crushing effect (+4). Smashed by Wall. Map ----- +----------------------------------------------------+ | ??# ############## #### | | ### """ ### ## ##?# | | ### """"" ### % ## ###? | | ### """"" #?# % # ### | | ### ### + T ### | | ################## # ### | | # # ## ##?? | | ! ! " # ## ##?# | | # """ """ # ## #### | | ! # """ """ ############ #### | | ##+##### """ """ ############ #### | | #### ######?##### #?## | | #### ##?#########!#### | | " #??# #### #=#### | | #######+#+####### #%#### | | #??#?## # ##?# | | ########### > #%###? | | ?########## # #### | | ? ####?###+####### #!#?## | | ? ##? ?###### # #### | | ## ###?##### ### #### | | ? ?## ?###?#### ### #### | | ? ???## ? ?######### ##"%"### | | ?? ?## ? # ## ##" #### | | ?? #?? ? #""" ;; ;#; #### | | ?? ?# ? #""" # @ ;; #### | | ##???##?#####?#""" ; ! %%;; ; # | | ######?? # ; %!%8 ;#?? | | ? ?# """"# # #;;###? | | # ??""""####+##; ## #? | | ? # ? """"#### ####;s#### ## | | ? #??? """"#### ##### ##?#= ## | | ? ? """"#### ##?## #### ;# | | # """"### ### ### /## | | ?# ?? ### " " ### #? | | ? #? ? ?### ### ### ## | | ####?#+#####?#####m##?## ##?#####? | | #######?# ##### #### #### | | #?# #####+######??? | | ### # ###?## | | ###### ??# # """#??##? | | ?##?## ### # """#??#?# | | ???#?# # """#####? | | + ?? + ##?#?# | | ?#?#?# ?""" # [ """###??# | | ?##? "T" " " # """#?#?#? | | ??#??? " " # """####?? | | ?#??? " " + #?##?# | | ??##? " " ############???? | | ?##?# " " ###?## ?? ?#?? | +----------------------------------------------------+ Best States ------------- Heat Dissipation 129 Energy Generation 60 Energy Capacity 500 Matter Stores 300 Matter Capacity 300 Sight Range 20 Robot Scan Range 20 Terrain Scan Range 24 Terrain Scan Density 410 Cloak Strength 5 Additional Mass Support 12 Armor Coverage 1200 Resistance: EX 25 Weapon Shielding 100 Weapon Cycling 25 Evasion (%) 72 Targeting Accuracy 26 Target Analysis 15 Core Analysis 9 Energy Filtering 50 Particle Charging 15 Offensive Hacking 5 Defensive Hacking 5 Item Schematics ----------------- Mni. Grenade Launcher | -9/Materials | Extracted Lgt. Cannon | -9/Materials | Extracted Targeting Computer | -9/Materials | Extracted Seismic Detector | -9/Materials | Extracted Plasma Cutter | -8/Materials | Extracted Power Shielding | -8/Materials | Extracted Hvy. Particle Cannon | -8/Materials | Extracted Insulated Plating | -8/Materials | Extracted Sml. Battery | -8/Materials | Extracted Hpw. Tractor Beam | -8/Materials | Extracted Scythe | -8/Materials | Extracted Particle Cannon | -8/Materials | Extracted Lgt. Ion Engine | -8/Materials | Extracted Terrain Scan Processor | -8/Materials | Extracted Hvy. Assault Rifle | -8/Materials | Extracted Adv. Weight Redist. System | -8/Materials | Extracted Med. Armor Plating | -8/Materials | Extracted Mace | -8/Materials | Extracted Imp. Light Cannon | -8/Materials | Extracted Imp. Propulsion Shielding | -8/Materials | Extracted Titanium Leg | -8/Materials | Extracted Arm. Wheel | -8/Materials | Extracted Machine Analyzer | -8/Materials | Extracted Reaction Control System | -8/Materials | Extracted Adv. Treads | -8/Materials | Extracted Hcp. Matter Pod | -8/Materials | Extracted Combat Drone Bay | -7/Data Miner | Free Lgt. Regenerative Plating | -7/Data Miner | Free Gravity Neutralizer | -7/Data Miner | Free Cld. Cesium-ion Thruster | -7/Data Miner | Free Com. Ion Cannon | -7/Data Miner | Free Nuclear Pulse Array | -7/Data Miner | Free KE Penetrator | -7/Data Miner | Free Point Defense System | -7/Data Miner | Free Imp. Cryofiber Web | -6/Factory | Hacked Adv. Terrain Scanner | -6/Zion | Archive Disruptor Cannon | -6/Zion | Archive Focal Shield | -6/Zion | Archive Imp. Coolant Injector | -6/Zion | Archive Stasis Canceller | -6/Zion | Archive Adv. Cooling System | -6/Zion | Archive Flexi-carbon Leg | -6/Zion | Archive Imp. Antigrav System | -6/Zion | Archive Adv. Target Analyzer | -6/Zion | Archive Cloaking Device | -6/Zion | Archive Imp. Dynamic Insulation System | -6/Zion | Archive Imp. Focal Shield | -6/Zion | Archive Adv. Sensor Array | -6/Zion | Archive Adv. Plasma Cannon | -6/Zion | Archive Robot Schematics ------------------ A-15 Conveyor | -7/Data Miner | Free M-28 Smith | -7/Data Miner | Free B-48 Gladiator | -7/Data Miner | Free H-66 Slayer | -7/Data Miner | Free G-50 Soldier | -7/Data Miner | Free A-02 Transporter | -6/Zion | Archive K-01 Serf | -6/Zion | Archive M-22 Extractor | -6/Zion | Archive G-73 Enforcer | -6/Zion | Archive Fabricated ------------ Nothing Repaired ---------- Nothing Studied --------- Mic. Nuclear Core | -8/Materials | Hacked Alien Tech Used ----------------- None Achievements -------------- Bullet Installation Coming In Hot Challenges ------------ None RPGLIKE | -11 -10 -10 -9 -9 -9 -8 -8 -8 -8 -8 -8 -8 -8 -7 -7 -7 -7 -7 -7 -6 -6 -6 -6 -6 -6 -5 -5 --------- Run | Yrd Mat Min Mat Min Exi Min Mat Gar Mat Gar Mat Gar Mat Fac Was Fac Low Low Dat Pro Fac Low Low Zio Dee Pro Fac Levels Raised 23 | . 3 1 5 . 2 . 2 1 1 . 1 . . 1 . 1 . 1 . . 2 . . . . 1 1 XP Earned 37611 | 3000 4736 1350 8046 727 1741 1234 2791 830 1178 677 805 438 587 1280 32 1823 168 131 177 579 2861 181 176 57 173 674 1159 XP Spent 34935 | 2400 3600 2200 8100 . 2510 . 1550 2300 2400 . . . 1650 1775 . 1400 . 1610 . . 2000 . . 700 . 440 300 Upgrades 77 | 5 10 3 6 . 15 . 2 1 2 . . . 3 11 . 1 . 7 . . 3 . . 2 . 4 2 Power Slot 1 | . . . . . . . . . . . . . . . . . . . . . 1 . . . . . . Propulsion Slot 4 | 1 . . 2 . . . . . . . . . . . . 1 . . . . . . . . . . . Utility Slot 7 | 1 1 1 3 . . . . 1 . . . . . . . . . . . . . . . . . . . Weapon Slot 3 | 2 1 . . . . . . . . . . . . . . . . . . . . . . . . . . Core Integrity 14 | . . . . . 12 . . . . . . . . . . . . . . . . . . . . . 2 Heat Dissipation 13 | . 5 . . . . . . . . . . . . 1 . . . 7 . . . . . . . . . Energy Generation 3 | . . . . . 1 . 1 . 1 . . . . . . . . . . . . . . . . . . Mass Support 4 | 1 1 . 1 . . . . . 1 . . . . . . . . . . . . . . . . . . Inventory Capacity 5 | . 1 . . . 2 . 1 . . . . . 1 . . . . . . . . . . . . . . Sensor Range 10 | . . . . . . . . . . . . . . 10 . . . . . . . . . . . . . Terrain Scan Density 4 | . . . . . . . . . . . . . . . . . . . . . . . . . . 4 . Ranged Accuracy 5 | . 1 2 . . . . . . . . . . . . . . . . . . 2 . . . . . . Hack Attack % 1 | . . . . . . . . . . . . . 1 . . . . . . . . . . . . . . Hack Defense % 1 | . . . . . . . . . . . . . 1 . . . . . . . . . . . . . . TH Damage % 2 | . . . . . . . . . . . . . . . . . . . . . . . . 2 . . . Protomatter Created 16930 | . 592 13 536 121 1613 89 1260 416 772 570 781 689 1340 377 229 2259 199 374 . 296 2271 196 222 116 522 407 670 Integrity Restored 21344 | . 631 39 1266 154 2048 236 925 340 827 498 467 530 864 632 525 2804 331 150 . 256 3265 592 652 240 1556 633 883 Core 17213 | . 497 39 956 82 2024 93 514 268 650 402 371 412 685 621 525 1986 184 123 . 216 2980 592 279 142 1498 316 758 Parts 4131 | . 134 . 310 72 24 143 411 72 177 96 96 118 179 11 . 818 147 27 . 40 285 . 373 98 58 317 125 Protomatter Decayed 5774 | . 329 . 88 39 283 . 679 266 423 394 423 457 664 148 . 277 86 275 26 65 489 95 . 34 1 61 172 Game ------ Seed SingularityZeroNetTrap Manual? 1 Play Time 05:10:58 Cumulative 651.7 hours Start 2026.07.08 @ 13:18:19 End 2026.07.10 @ 15:03:14 Sessions 3 Manual Loads 0 Difficulty Rogue Special Mode Winter2019/RPGLIKE Game No. 259 Rogue 105 Adventurer 154 Explorer 0 Win Type - Total 21 Types 4/4/4/3/2/1/0/1/1/1 Lore% 95 Gallery% 88 Achievement% 65 Wizard Run 0 Options --------- Layout 0 ASCII 0 Keyboard 0 Movement Numpad Keybinds 0 Fullscreen 2 Font 18/SmallcapsGlow Map View 76x50 Zoom Use 0% Tactical HUD 1 Map Filters NONE Filters NONE Steam 1 RUN: 47513fe6-a71e-4bc2-adfb-b8405dbdf432